{"text_format":"1","workbook":"xlsx","n_sheets":9,"sheets":["ФПИ","Дисплеи","Справочники","Инструкция","class","Алгоритм проверки","Лист1","Лист2","Лист3"],"not_rendered":{"charts":0,"images":1,"macros":1,"external_links":1,"defined_names":5,"comments":0,"pivot_tables":0},"unopened":[],"bounds":{"document_bytes":16777216,"sheet_cells":100000,"rows_first":2000,"rows_last":500,"rows_between":2000,"halvings":0,"cell_chars":16384,"cell_head_chars":4096},"cells_cut":0,"cells_raw":0,"read":"whole","date_system":"1900"}

{"sheet":"ФПИ","index":0,"n_rows":11,"n_cols":108,"rows_kept":11,"cut":false,"hidden":false,"merged":[[5,102,5,104],[5,105,5,106],[5,86,5,100],[5,84,6,84],[5,83,6,83],[5,85,6,85],[5,4,6,4],[5,6,6,6],[5,7,6,7],[5,8,6,8],[5,16,5,21],[5,5,6,5],[5,13,6,13],[5,14,6,14],[5,0,6,0],[5,78,6,78],[5,62,6,62],[5,64,6,64],[5,71,6,71],[5,55,5,61],[5,41,5,49],[5,50,5,54],[5,24,5,31],[5,32,5,40],[5,9,6,9],[5,10,5,12],[5,1,6,1],[5,3,6,3],[5,15,6,15],[5,2,6,2],[5,79,6,79],[5,68,6,68],[5,77,6,77],[5,101,6,101],[5,67,6,67],[5,76,6,76],[5,82,6,82],[5,81,6,81],[5,80,6,80],[5,72,6,72],[5,70,6,70],[5,73,6,73],[5,74,6,74],[5,75,6,75],[5,22,6,22],[5,63,6,63],[5,66,6,66],[5,65,6,65],[5,23,6,23]]}
[]
[]
["Форма предоставления информации о товаре поставщиками Компании Х5"]
[]
["LINNO","BRAND_ID","BRAND_DESC","TEXT2","MAKTX_EN","PRUE","MEINS","NTGEW","TARA","CONSIST_FULL","PROTEINS","FATS","CARBOHYDRATES","ENERGY","STORAGE_TEMP","TEXT1","NODE1","NODE2","NODE3","NODE4","NODE5","NODE6","VOLUME_LITRE","NUMBUNITS","GTIN_ACH","TOTLWEI_ACH","HEIGHT_ACH","WIDTH_ACH","LENGTH_ACH","VEGR2_ACH","VEGR3_ACH","VEGR4_ACH","GTIN_BLK","TOTLWEI_BLK","TRGQTY_BLK","HEIGHT_BLK","WIDTH_BLK","LENGTH_BLK","VEGR2_BLK","VEGR3_BLK","VEGR4_BLK","GTIN_BOX","TOTLWEI_BOX","TRGQTY_BOX","HEIGHT_BOX","WIDTH_BOX","LENGTH_BOX","VEGR2_BOX","VEGR3_BOX","VEGR4_BOX","TOTLWEI_LAY","TRGQTY_LAY","HEIGHT_LAY","WIDTH_LAY","LENGTH_LAY","GTIN_PLT","TOTLWEI_PLT","TRGQTY_PLT","PKPAL","HEIGHT_PLT","WIDTH_PLT","LENGTH_PLT","MNFLB","SERTIFICATE","ZOKP","STAWN","HERKL","TAKLV","MHDHB","SHORT_LIFETIME","ZSPR","ZSTM","MAABC","ZRTOEAT","VETCATRISK","STORAGE_TRANS","ZBABYFOOD","PRICESEGMENT","MATKL","SOCIALSIGNIFICAN","BONUSCALCULATION","ZTENDER","ZPRNTCNTRY","ZSUPPLIER","MFRNM","LIFNR","Z_ALCO_PRODUCER","ALINN","ALKPP","TAXSTAMPSCAN","SODEJANIE_SPIRTA","ZLIC","FNS","FNSN","ZMRC","ALCCODE","HERKR","ALINF","SET_QTY","WINE_REGION","WINE_GEOGRAPHIC",null,"ZFK_RAUBE","ZFK_WHSTC","ZFK_WHMATGR"]
["Порядковый номер","Код торговой марки в SAP","Название торговой марки на языке оригинала  (ТМ)","Полное наименование товара у Поставщика(с указанием Торговой марки, веса, объема, емкости, ед.изм.)","Наименование товара (EN)","Наименование online (Формируется по следующему принципу: Вид + «Название торговой марки (производитель/Вендор, в случае отсутствия торговой марки)» + ключевые свойства + количество/вес. Не должно содержать сокращения. Торговая марка заключается в кавычки. Все слова в нижнем регистре (кроме первой буквы первого слова и первых буков наименований – например, торговой марки). Например: Джем \"Красная цена\" домашний черничный 0.4кг)","Единица измерения (шт, кг)","вес НЕТТО единицы товара, кг","Тара","Состав товара, полностью без сокращений","Пищевая ценность продуктов питания на 100 гр.",null,null,"Энергетическая ценность, в кКал","Температура хранения, мин/макс","Маркировка Информация должна содержать следующие сведения, и внесена в данной последовательности: 1.Наименование продукции, вкл. термическое состояние, сорт, категории, вид разделки, массовая доля глазури (для замороженной рыбы, креветок и т.д.)2. Состав3. Пищевая ценность в 100г продукта (белки, жиры, углеводы)4. Энергетическая ценность в ккал.5. Рекомендации по приготовлению.6. Нормативный документ, в соответствии с которым изготовлена данная продукция.7. Сроки годности 8. Условия хранения.9. Наименование и адрес организации – изготовителя.10. Информация о подтверждении соответствия.11. Дата упаковывания соответствует дате изготовления.","Товарная классификация для поставщиков",null,null,null,null,null,"Емкость в литрах     ","Кол-во единиц употребления в продажной упаковке.","Единица (обязательный уровень) - ACH",null,null,null,null,null,null,null,"Блок - BLK",null,null,null,null,null,null,null,null,"Короб (обязательный уровень) - BOX",null,null,null,null,null,null,null,null,"Слой - LAY",null,null,null,null,"Паллета (обязательный уровень) - PLT",null,null,null,null,null,null,"Производитель товара (на языке оригинала), указанный в сертификате и на упаковке товара","№ Документа (сертификата / декларации)","Код ОКПД (по сертификату, декларации и т.п.)","Код ТНВЭД (по сертификату, декларации и т.п.)","Страна изготовитель","НДС поставщика(0% / 10% / 18%)","Срок годности, дней",null,"Собственное производство","СТМ (да/нет)","Сегментация","Готовность к употреблению","Категория риска","Способы хранения","Детское питание (да/нет)","Ценовой сегмент","Группа товара (нижний уровень иерархии)","Социально значимый товар","Участвует в расчете бонусов","Тендер","Печать страны на ценнике (да/нет)","Номер вендора в SAP (производитель товара)","Наименование вендора (производителя)","Код поставщика в SAP","Алкоголь",null,null,null,null,null,null,null,null,null,null,null,null,null,null,"Алкоголь","Фабрика Кухни",null,null,"Проверка введенных данных"]
[null,null,null,null,null,null,null,null,null,null,"Белки, гр","Жиры, гр","Углеводы, гр",null,null,null,"Уровень 1","Уровень 2","Уровень 3","Уровень 4","Уровень 5","Уровень 6",null,null,"GTIN (Штрихкод торговой единицы) ","Вес БРУТТО единицы товара, кг","Высота, мм","Ширина, мм","Глубина (Длина), мм","Признак выкладки (Шоу-бокс, SRP)","Тип упаковки","Материал упаковки","GTIN (Штрихкод торговой единицы) ","Вес БРУТТО, кг","Количество штук (кг) в блоке","Высота, мм","Ширина, мм","Глубина (Длина), мм","Признак выкладки (Шоу-бокс, SRP)","Тип упаковки","Материал упаковки","GTIN (Штрихкод)","Вес БРУТТО, кг","Количество штук (кг) в коробе","Высота, мм","Ширина, мм","Глубина (Длина), мм","Признак выкладки (Шоу-бокс, SRP)","Тип упаковки","Материал упаковки","Вес БРУТТО, кг","Количество штук (кг) в слое","Высота, м","Ширина, м","Глубина (Длина), м","GTIN (Штрихкод)","Вес БРУТТО, кг","Количество штук (кг) на паллете","Кол-во упак.на паллете","Высота, м","Ширина, м","Глубина (Длина), м",null,null,null,null,null,null,null,"Срок годности после вскрытия, дней",null,null,null,null,null,null,null,null,null,null,null,null,null,null,null,null,"Производитель алкоголя","ИНН производителя/импортера ","КПП производителя/импортера","Акцизный товар","Содержание этилового спирта в %","Тип лицензируемости алкоголя (только для алкоголя)","Код ФНС (код вида продукции в соответствии с РАР)","Код ФНС новый","Тип расчета МРЦ (только для алкоголя c содержанием спирта более 28%)","Код продукта в ЕГАИС","Регион виноделия","Наименование Производителя/Импортера","Кол-во единиц в алконаборе","Регион виноделия","Географический классификатор",null,"ФК Условия хранения","ФК Условия хранения на складе","ФК Группа продуктов склада","Обязательные поля для заполнения","Ошибки в данных"]
[1,2,3,4,5,6,7,8,9,10,11,12,13,14,15,"16","17","18","19","20","21","22",23,24,25,26,27,28,29,30,31,32,33,34,35,36,37,38,39,40,41,42,43,44,45,46,47,48,49,50,51,52,53,54,55,56,57,58,59,60,61,62,63,64,65,66,67,68,69,70,71,72,73,74,75,76,77,78,79,80,81,82,83,84,85,86,87,88,89,90,91,92,93,94,95,96,97,98,99,100,101,102,103,104,105,106,107]
[]
[]
[null,null,null,null,null,null,null,null,null,null,null,null,null,null,null,null,null,null,null,null,null,null,null,null,null,null,null,null,null,null,null,null,null,null,null,null,null,null,null,null,null,null,null,null,null,null,null,null,null,null,null,null,null,null,null,null,null,null,null,null,null,null,null,null,null,null,null,null,null,null,null,null,null,null,null,null,null,null,null,null,null,null,null,null,null,null,null,null,null,null,null,null,null,null,null,null,null,null,null,null,null,null,null,null,null,null,null,""]

{"sheet":"Дисплеи","index":1,"n_rows":3,"n_cols":3,"rows_kept":3,"cut":false,"hidden":false,"merged":[]}
["PLU_LINE","ITEM_MATNR","ITEM_QTY"]
["Порядковый номер PLU на листе ФПИ (столбец 1)","PLU компонента","Количество компонента в единице дисплея"]
[1,2,3]

{"sheet":"Справочники","index":2,"n_rows":248,"n_cols":100,"rows_kept":248,"cut":false,"hidden":false,"merged":[[0,48,0,50],[0,22,0,24],[0,0,0,2],[0,4,0,6],[0,8,0,10],[0,12,0,14],[0,18,0,20],[0,34,0,36],[0,31,0,33],[0,38,0,40],[0,41,0,43],[0,45,0,47]]}
["Значения справочника для поля \"Тара\" ФПИ",null,null,null,"Значения справочника для поля \"Страна происхождения\" ФПИ",null,null,null,"Значения справочника для поля \"Сегментация\" ФПИ",null,null,null,"Значения справочника для поля \"Сегментация\" ФПИ",null,null,null,"Ед. изм.","Признак шоу-бокса","Тип упаковки",null,null,null,"Материал упаковки",null,null,null,"НДС",null,"Товары дет. Питания","Ценовой сегмент",null,"Готов к употреблению",null,null,"Категория риска продукции",null,null,null,"Способы хранения",null,null,"ФК Условия хранения",null,null,null,"ФК Условия хранения на складе",null,null,"ФК Группа продуктов склада"]
[1,"Блок",{"$f":" CONCATENATE(LEFT(CONCATENATE(A2, \"   \"),3),B2)","v":"1  Блок"},null,"AB","Абхазия",{"$f":" CONCATENATE(LEFT(CONCATENATE(E2, \"  \"),3),F2)","v":"AB Абхазия"},null,1,10,{"$f":" CONCATENATE(LEFT(CONCATENATE(I2, \" \"),3),J2)","v":"1 10"},null,null,null,null,null,"ШТ","X",1,"АЙКОН",{"$f":"CONCATENATE(S2:S119, \" \",T2:T119)","v":"1 АЙКОН"},null,1,"АЛЮМИНИЙ",{"$f":"CONCATENATE(W2, \" \",X2)","v":"1 АЛЮМИНИЙ"},null,0,null,"Да","НЦС",null,1," ready-to-eat",{"$f":"CONCATENATE(AF2:AF3,AG2:AG3)","v":"1 ready-to-eat"},0," Не подлежит вет. сопров.",{"$f":"CONCATENATE(AI2:AI5,AJ2:AJ5)","v":"0 Не подлежит вет. сопров."},null,1," Замороженные",{"$f":"CONCATENATE(AM2:AM5,AN2:AN5)","v":"1 Замороженные"}]
[2,"Бумажный пакет","2  Бумажный пакет",null,"AD","Андорра",{"$f":" CONCATENATE(LEFT(CONCATENATE(E3, \"  \"),3),F3)","v":"AD Андорра"},null,2,20,{"$f":" CONCATENATE(LEFT(CONCATENATE(I3, \" \"),3),J3)","v":"2 20"},null,null,null,null,null,"КГ",null,2,"АМПУЛА","2 АМПУЛА",null,2,"БИОПЛАСТИК",{"$f":"CONCATENATE(W3, \" \",X3)","v":"2 БИОПЛАСТИК"},null,0.1,null,"Нет","СЦС",null,2," ready-to-cook",{"$f":"CONCATENATE(AF3:AF4,AG3:AG4)","v":"2 ready-to-cook"},1," Продукция низкого риска",{"$f":"CONCATENATE(AI3:AI6,AJ3:AJ6)","v":"1 Продукция низкого риска"},null,2," Охлажденные",{"$f":"CONCATENATE(AM3:AM6,AN3:AN6)","v":"2 Охлажденные"}]
[7,"В/у","7  В/у",null,"AE","ОАЭ","AE ОАЭ",null,3,30,"3 30",null,null,null,null,null,null,null,3,"АСЕПТИЧЕСКАЯ УПАКОВКА","3 АСЕПТИЧЕСКАЯ УПАКОВКА",null,3,"БРЕЗЕНТ","3 БРЕЗЕНТ",null,0.18,null,null,"ВЦС",null,null,null,"",2," Продукция среднего риска","2 Продукция среднего риска",null,3," Охлаждаемые","3 Охлаждаемые"]
[10,"Ванна","10 Ванна",null,"AF","Афганистан","AF Афганистан",null,4,40,"4 40",null,null,null,null,null,null,null,4,"АЭРОЗОЛЬНАЯ УПАКОВКА","4 АЭРОЗОЛЬНАЯ УПАКОВКА",null,4,"БУМАГА","4 БУМАГА",null,null,null,null,"не определен",null,null,null,"",3," Продукция высокого риска","3 Продукция высокого риска",null,4," Вентилируемые","4 Вентилируемые"]
[12,"Ведерко","12 Ведерко",null,"AG","Антигуа/Барбуда","AG Антигуа/Барбуда",null,5,"50 ФРОВ ДСК","5 50 ФРОВ ДСК",null,null,null,null,null,null,null,5,"БАЛЛОН","5 БАЛЛОН",null,5,"ВИНИЛ","5 ВИНИЛ",null,null,null,null,"Premium",null,null,null,null,null,null,null,null,null,null,""]
[13,"Газовая среда","13 Газовая среда",null,"AI","Ангилья","AI Ангилья",null,6,"60 ФРОВ ГМ","6 60 ФРОВ ГМ",null,null,null,null,null,null,null,6,"БАНДЕРОЛЬ","6 БАНДЕРОЛЬ",null,6,"ВОЛОКНО","6 ВОЛОКНО",null,null,null,null,null,null,null,null,null,null,null,null,null,null,null,""]
[14,"Гастроёмкость","14 Гастроёмкость",null,"AL","Албания","AL Албания",null,7,"70 ОФ ЛЮБА","7 70 ОФ ЛЮБА",null,null,null,null,null,null,null,7,"БАНКА","7 БАНКА",null,7,"ВСПЕНЕННЫЙ ПОЛИСТИРОЛ","7 ВСПЕНЕННЫЙ ПОЛИСТИРОЛ",null,null,null,null,null,null,null,null,null,null,null,null,null,null,null,""]
[15,"Дерево","15 Дерево",null,"AM","Армения","AM Армения",null,null,null,null,null,null,null,null,null,null,null,8,"БАНКА МЕТАЛЛИЧЕСКАЯ ДЛЯ КОНСЕРВИРОВАНИЯ","8 БАНКА МЕТАЛЛИЧЕСКАЯ ДЛЯ КОНСЕРВИРОВАНИЯ",null,8,"ГОФРИРОВАННАЯ БУМАГА","8 ГОФРИРОВАННАЯ БУМАГА",null,null,null,null,null,null,null,null,null,null,null,null,null,null,null,"",null,null,null,null,null,null,null,null,null,null,null,null,null,null,null,null,null,null,null,null,null,null,null,null,null,null,null,null,null,null,null,null,null,null,null,null,null,null,null,null,null,null,null,null,null,null,null,null,null,null,null,null,null,null,null,null,null,null,"d - Наименование товара; y - вес брутто штуки; z - высота штуки; aa - ширина штуки; ab - глубина штуки; ad - тип упаковки штуки; ae - материал упаковки штуки; ap - вес брутто короба; aq - квант короба; ar - высота короба; as - ширина короба; at - глубина короба; av - тип упаковки короба; aw - материал упаковки короба; ax - вес брутто слоя; ay; - квант слояaz - высота слоя; ba - ширина слоя; bb - глубина слоя; bd - вес брутто паллеты; be - квант паллеты ; bg - высота паллеты; bh - ширина паллеты; bi - глубина паллеты; bk - код ОКПД; bm - страна; bn - НДС; bo - срок годности; bt - соц. значим товар; by - наименование вендора ; bz - код поставщика ; "]
[16,"Дой-пак","16 Дой-пак",null,"AN","Антил. (Нидер.)","AN Антил. (Нидер.)",null,null,null,null,null,null,null,null,null,null,null,9,"БАНКА МЕТАЛЛИЧЕСКАЯ ДЛЯ НАПИТКОВ","9 БАНКА МЕТАЛЛИЧЕСКАЯ ДЛЯ НАПИТКОВ",null,9,"ГОФРОКАРТОН ДВУХСЛОЙНЫЙ","9 ГОФРОКАРТОН ДВУХСЛОЙНЫЙ",null,null,null,null,null,null,null,null,null,null,null,null,null,null,null,"",null,null,{"$f":"CONCATENATE(AP10:AP17,AQ10:AQ17)","v":""}]
[17,"Ж/б","17 Ж/б",null,"AO","Ангола","AO Ангола",null,null,null,null,null,null,null,null,null,null,null,10,"БАНКА СТЕКЛЯННАЯ","10 БАНКА СТЕКЛЯННАЯ",null,10,"ГОФРОКАРТОН ТРЕХСЛОЙНЫЙ","10 ГОФРОКАРТОН ТРЕХСЛОЙНЫЙ",null,null,null,null,null,null,null,null,null,null,null,null,null,null,null,"",null,null,""]
[18,"Картон","18 Картон",null,"AQ","Антарктика","AQ Антарктика",null,null,null,null,null,null,null,null,null,null,null,11,"БАРАБАН","11 БАРАБАН",null,11,"ГОФРОКАРТОН ПЯТИСЛОЙНЫЙ","11 ГОФРОКАРТОН ПЯТИСЛОЙНЫЙ",null,null,null,null,null,null,null,null,null,null,null,null,null,null,null,"",null,null,""]
[19,"Керамика","19 Керамика",null,"AR","Аргентина","AR Аргентина",null,null,null,null,null,null,null,null,null,null,null,12,"Биг-бэг (мягкий контейнер)","12 Биг-бэг (мягкий контейнер)",null,12,"ГОФРОКАРТОН СЕМИСЛОЙНЫЙ","12 ГОФРОКАРТОН СЕМИСЛОЙНЫЙ"]
[20,"Контейнер","20 Контейнер",null,"AS","Амер. Самоа","AS Амер. Самоа",null,null,null,null,null,null,null,null,null,null,null,13,"БИДОН","13 БИДОН",null,13,"ДРЕВЕСИНА","13 ДРЕВЕСИНА"]
[21,"Корзинка","21 Корзинка",null,"AT","Австрия","AT Австрия",null,null,null,null,null,null,null,null,null,null,null,14,"БЛИСТЕРНАЯ УПАКОВКА","14 БЛИСТЕРНАЯ УПАКОВКА",null,14,"ДРЕВЕСИНА МЯГКАЯ","14 ДРЕВЕСИНА МЯГКАЯ"]
[24,"Лоток","24 Лоток",null,"AU","Австралия","AU Австралия",null,null,null,null,null,null,null,null,null,null,null,15,"БЛОК","15 БЛОК",null,15,"ДРЕВЕСИНА ТВЕРДАЯ","15 ДРЕВЕСИНА ТВЕРДАЯ"]
[26,"Мельница","26 Мельница",null,"AW","Аруба","AW Аруба",null,null,null,null,null,null,null,null,null,null,null,16,"БЛОКПАК","16 БЛОКПАК",null,16,"ЖЕСТЬ","16 ЖЕСТЬ"]
[28,"Мягкая упаковка","28 Мягкая упаковка",null,"AZ","Азербайджан","AZ Азербайджан",null,null,null,null,null,null,null,null,null,null,null,17,"БОБИНА","17 БОБИНА",null,17,"ЗАМША","17 ЗАМША"]
[29,"Неупакованный","29 Неупакованный",null,"BA","Босния-Герц.","BA Босния-Герц.",null,null,null,null,null,null,null,null,null,null,null,18,"БОНБОНЬЕРКА","18 БОНБОНЬЕРКА",null,18,"ИСКУССТВЕННАЯ ОБОЛОЧКА","18 ИСКУССТВЕННАЯ ОБОЛОЧКА"]
[30,"п/этиленовый пакет","30 п/этиленовый пакет",null,"BB","Барбадос","BB Барбадос",null,null,null,null,null,null,null,null,null,null,null,19,"БОЧКА","19 БОЧКА",null,19,"КАРТОН","19 КАРТОН"]
[31,"Пакет","31 Пакет",null,"BD","Бангладеш","BD Бангладеш",null,null,null,null,null,null,null,null,null,null,null,20,"Бугорчатая прокладка или коррекс","20 Бугорчатая прокладка или коррекс",null,20,"КАРТОН ЛАМИНИРОВАННЫЙ","20 КАРТОН ЛАМИНИРОВАННЫЙ"]
[32,"Пачка","32 Пачка",null,"BE","Бельгия","BE Бельгия",null,null,null,null,null,null,null,null,null,null,null,21,"БУТ","21 БУТ",null,21,"КЕРАМИКА","21 КЕРАМИКА"]
[33,"Пергамент","33 Пергамент",null,"BF","Буркина-Фасо","BF Буркина-Фасо",null,null,null,null,null,null,null,null,null,null,null,22,"БУТЫЛКА","22 БУТЫЛКА",null,22,"КОЖА","22 КОЖА"]
[34,"Пластик","34 Пластик",null,"BG","Болгария","BG Болгария",null,null,null,null,null,null,null,null,null,null,null,23,"БЭГ-ИН-БОКС","23 БЭГ-ИН-БОКС",null,23,"КОМБИНИРОВАННЫЙ МАТЕРИАЛ","23 КОМБИНИРОВАННЫЙ МАТЕРИАЛ"]
[35,"Пленка","35 Пленка",null,"BH","Бахрейн","BH Бахрейн",null,null,null,null,null,null,null,null,null,null,null,24,"ВАКУУМНАЯ УПАКОВКА","24 ВАКУУМНАЯ УПАКОВКА",null,24,"ЛАТУНЬ","24 ЛАТУНЬ"]
[36,"Подложка","36 Подложка",null,"BI","Бурунди","BI Бурунди",null,null,null,null,null,null,null,null,null,null,null,25,"ВЕДРО","25 ВЕДРО",null,25,"МЕТАЛЛ","25 МЕТАЛЛ"]
[38,"Прочий вид упаковки","38 Прочий вид упаковки",null,"BJ","Бенин","BJ Бенин",null,null,null,null,null,null,null,null,null,null,null,26,"ВТОРАЯ КОЖА","26 ВТОРАЯ КОЖА",null,26,"МЕШКОВИНА","26 МЕШКОВИНА"]
[40,"Сашет","40 Сашет",null,"BL","Сен-Бартельми","BL Сен-Бартельми",null,null,null,null,null,null,null,null,null,null,null,27,"ГИЛЬЗА","27 ГИЛЬЗА",null,27,"МНОГОСЛОЙНЫЙ ПОДЕЛОЧНЫЙ КАРТОН","27 МНОГОСЛОЙНЫЙ ПОДЕЛОЧНЫЙ КАРТОН"]
[41,"Сетка","41 Сетка",null,"BM","Бермудcкие о-ва","BM Бермудcкие о-ва",null,null,null,null,null,null,null,null,null,null,null,28,"ДАЙМОНТ","28 ДАЙМОНТ",null,28,"НАТУРАЛЬНАЯ ОБОЛОЧКА","28 НАТУРАЛЬНАЯ ОБОЛОЧКА"]
[42,"Стаканчик","42 Стаканчик",null,"BN","Бруней","BN Бруней",null,null,null,null,null,null,null,null,null,null,null,29,"ДАЙМОНТ КЕРВ","29 ДАЙМОНТ КЕРВ",null,29,"НАТУРАЛЬНЫЙ КАУЧУК","29 НАТУРАЛЬНЫЙ КАУЧУК"]
[43,"Стекло","43 Стекло",null,"BO","Боливия","BO Боливия",null,null,null,null,null,null,null,null,null,null,null,30,"ДОЙПАК","30 ДОЙПАК",null,30,"НЕЙЛОН","30 НЕЙЛОН"]
[46,"Тетрапак","46 Тетрапак",null,"BR","Бразилия","BR Бразилия",null,null,null,null,null,null,null,null,null,null,null,31,"КАНИСТРА","31 КАНИСТРА",null,31,"ОЛОВО","31 ОЛОВО"]
[48,"Туба","48 Туба",null,"BS","Багамcкие о-ва","BS Багамcкие о-ва",null,null,null,null,null,null,null,null,null,null,null,32,"КАПСУЛА","32 КАПСУЛА",null,32,"ОРГАЛИТ (ДВП)","32 ОРГАЛИТ (ДВП)"]
[49,"Фольга","49 Фольга",null,"BT","Бутан","BT Бутан",null,null,null,null,null,null,null,null,null,null,null,33,"КАРТУЗ",{"$f":"CONCATENATE(S34:S151, \" \",T34:T151)","v":"33 КАРТУЗ"},null,33,"ПЕНОПЛАСТ","33 ПЕНОПЛАСТ"]
[51,"Флоу-пак","51 Флоу-пак",null,"BV","о. Буве","BV о. Буве",null,null,null,null,null,null,null,null,null,null,null,34,"КАТУШКА","34 КАТУШКА",null,34,"ПЕРГАМЕНТ","34 ПЕРГАМЕНТ"]
[55,"Кег","55 Кег",null,"BW","Ботсвана","BW Ботсвана",null,null,null,null,null,null,null,null,null,null,null,35,"КЕГ","35 КЕГ",null,35,"ПЛАСТМАССА","35 ПЛАСТМАССА"]
[56,"Коррекс","56 Коррекс",null,"BY","Беларусь","BY Беларусь",null,null,null,null,null,null,null,null,null,null,null,36,"КИПА","36 КИПА",null,36,"ПЛЕНОЧНЫЕ МАТЕРИАЛЫ ВЫСОКОБАРЬЕРНЫЕ","36 ПЛЕНОЧНЫЕ МАТЕРИАЛЫ ВЫСОКОБАРЬЕРНЫЕ"]
[58,"ПЭТ","58 ПЭТ",null,"BZ","Белиз","BZ Белиз",null,null,null,null,null,null,null,null,null,null,null,37,"КОЛБА","37 КОЛБА",null,37,"ПЛЕНОЧНЫЕ МАТЕРИАЛЫ СРЕДНЕБАРЬЕРНЫЕ","37 ПЛЕНОЧНЫЕ МАТЕРИАЛЫ СРЕДНЕБАРЬЕРНЫЕ"]
[59,"Подарочная упаковка","59 Подарочная упаковка",null,"CA","Канада","CA Канада",null,null,null,null,null,null,null,null,null,null,null,38,"КОЛБАСНАЯ УПАКОВКА","38 КОЛБАСНАЯ УПАКОВКА",null,38,"ПРОВОЛОКА","38 ПРОВОЛОКА"]
[null,null,null,null,"CC","Кокосовые о-ва","CC Кокосовые о-ва",null,null,null,null,null,null,null,null,null,null,null,39,"КОМБИБЛОК","39 КОМБИБЛОК",null,39,"ПОЛИАМИД","39 ПОЛИАМИД"]
[null,null,null,null,"CD","Респ. Конго","CD Респ. Конго",null,null,null,null,null,null,null,null,null,null,null,40,"КОМБИФИТ","40 КОМБИФИТ",null,40,"ПОЛИВИНИЛХЛОРИД (ПВХ)","40 ПОЛИВИНИЛХЛОРИД (ПВХ)"]
[null,null,null,null,"CF","ЦАР","CF ЦАР",null,null,null,null,null,null,null,null,null,null,null,41,"КОНВЕРТ","41 КОНВЕРТ",null,41,"ПОЛИКАРБОНАТ","41 ПОЛИКАРБОНАТ"]
[null,null,null,null,"CG","Конго","CG Конго",null,null,null,null,null,null,null,null,null,null,null,42,"КОНТЕЙНЕР (ПОТРЕБИТЕЛЬСКИЙ)","42 КОНТЕЙНЕР (ПОТРЕБИТЕЛЬСКИЙ)",null,42,"ПОЛИМЕР","42 ПОЛИМЕР"]
[null,null,null,null,"CH","Швейцария","CH Швейцария",null,null,null,null,null,null,null,null,null,null,null,43,"КОНТУРНАЯ БЕЗЪЯЧЕЙКОВАЯ УПАКОВКА","43 КОНТУРНАЯ БЕЗЪЯЧЕЙКОВАЯ УПАКОВКА",null,43,"ПОЛИОЛЕФИН","43 ПОЛИОЛЕФИН"]
[null,null,null,null,"CI","Кот-д'Ивуар","CI Кот-д'Ивуар",null,null,null,null,null,null,null,null,null,null,null,44,"КОНТУРНАЯ УПАКОВКА","44 КОНТУРНАЯ УПАКОВКА",null,44,"ПОЛИПРОПИЛЕН","44 ПОЛИПРОПИЛЕН"]
[null,null,null,null,"CK","О-ва Кука","CK О-ва Кука",null,null,null,null,null,null,null,null,null,null,null,45,"КОРЗИНА","45 КОРЗИНА",null,45,"ПОЛИСТИРОЛ","45 ПОЛИСТИРОЛ"]
[null,null,null,null,"CL","Чили","CL Чили",null,null,null,null,null,null,null,null,null,null,null,46,"КОРОБКА","46 КОРОБКА",null,46,"ПОЛИЭТИЛЕН","46 ПОЛИЭТИЛЕН"]
[null,null,null,null,"CM","Камерун","CM Камерун",null,null,null,null,null,null,null,null,null,null,null,47,"ЛИНПАК","47 ЛИНПАК",null,47,"ПОЛИЭТИЛЕН ВЫСОКОГО ДАВЛЕНИЯ LDPE","47 ПОЛИЭТИЛЕН ВЫСОКОГО ДАВЛЕНИЯ LDPE"]
[null,null,null,null,"CN","Китай","CN Китай",null,null,null,null,null,null,null,null,null,null,null,48,"ЛОТОК","48 ЛОТОК",null,48,"ПОЛИЭТИЛЕН НИЗКОГО ДАВЛЕНИЯ HDPE","48 ПОЛИЭТИЛЕН НИЗКОГО ДАВЛЕНИЯ HDPE"]
[null,null,null,null,"CO","Колумбия","CO Колумбия",null,null,null,null,null,null,null,null,null,null,null,49,"МЕРНЫЙ СОСУД","49 МЕРНЫЙ СОСУД",null,49,"ПОЛИЭТИЛЕНТЕРЕФТАЛАТ (ПЭТ/ПЭТФ)","49 ПОЛИЭТИЛЕНТЕРЕФТАЛАТ (ПЭТ/ПЭТФ)"]
[null,null,null,null,"CR","Коста-Рика","CR Коста-Рика",null,null,null,null,null,null,null,null,null,null,null,50,"МЕШОК","50 МЕШОК",null,50,"РЕЗИНА","50 РЕЗИНА"]
[null,null,null,null,"CU","Куба","CU Куба",null,null,null,null,null,null,null,null,null,null,null,51,"МУЛЬТИПАК","51 МУЛЬТИПАК",null,51,"СВИНЕЦ","51 СВИНЕЦ"]
[null,null,null,null,"CV","Кабо-Верде","CV Кабо-Верде",null,null,null,null,null,null,null,null,null,null,null,52,"МЯГКАЯ ТУБА","52 МЯГКАЯ ТУБА",null,52,"СТАЛЬ/ЖЕЛЕЗО","52 СТАЛЬ/ЖЕЛЕЗО"]
[null,null,null,null,"CX","О. Рождества","CX О. Рождества",null,null,null,null,null,null,null,null,null,null,null,53,"МЯГКИЙ КОНТЕЙНЕР","53 МЯГКИЙ КОНТЕЙНЕР",null,53,"СТАЛЬ НЕРЖАВЕЮЩАЯ","53 СТАЛЬ НЕРЖАВЕЮЩАЯ"]
[null,null,null,null,"CY","Кипр","CY Кипр",null,null,null,null,null,null,null,null,null,null,null,54,"СЛИВКИ ПОРЦИОННЫЕ","54 СЛИВКИ ПОРЦИОННЫЕ",null,54,"СТЕКЛО","54 СТЕКЛО"]
[null,null,null,null,"CZ","Чехия","CZ Чехия",null,null,null,null,null,null,null,null,null,null,null,55,"ОБЕРТКА","55 ОБЕРТКА",null,55,"СТЕКЛО ЦВЕТНОЕ","55 СТЕКЛО ЦВЕТНОЕ"]
[null,null,null,null,"DE","Германия","DE Германия",null,null,null,null,null,null,null,null,null,null,null,56,"ПАКЕТ","56 ПАКЕТ",null,56,"ТЕРМОПЛАСТИК","56 ТЕРМОПЛАСТИК"]
[null,null,null,null,"DJ","Джибути","DJ Джибути",null,null,null,null,null,null,null,null,null,null,null,57,"ПАКЕТ С БОКОВЫМИ СКЛАДКАМИ","57 ПАКЕТ С БОКОВЫМИ СКЛАДКАМИ",null,57,"ТКАНЬ","57 ТКАНЬ"]
[null,null,null,null,"DK","Дания","DK Дания",null,null,null,null,null,null,null,null,null,null,null,58,"ПАКЕТ-ПОДУШКА","58 ПАКЕТ-ПОДУШКА",null,58,"ЧУГУН","58 ЧУГУН"]
[null,null,null,null,"DM","Доминика","DM Доминика",null,null,null,null,null,null,null,null,null,null,null,59,"ПАЛЛЕТА (ПОДДОН)","59 ПАЛЛЕТА (ПОДДОН)",null,59,"ФАРФОР","59 ФАРФОР"]
[null,null,null,null,"DO","Доминик. респ.","DO Доминик. респ.",null,null,null,null,null,null,null,null,null,null,null,60,"ПАЧКА","60 ПАЧКА",null,60,"ФОЛЬГА","60 ФОЛЬГА"]
[null,null,null,null,"DZ","Алжир","DZ Алжир",null,null,null,null,null,null,null,null,null,null,null,61,"ПЕНАЛ","61 ПЕНАЛ",null,61,"ЦЕЛЛОФАН","61 ЦЕЛЛОФАН"]
[null,null,null,null,"EC","Эквадор","EC Эквадор",null,null,null,null,null,null,null,null,null,null,null,62,"ПОВТОРНО ЗАКРЫВАЕМАЯ УПАКОВКА","62 ПОВТОРНО ЗАКРЫВАЕМАЯ УПАКОВКА",null,62,"НЕТ В СПРАВОЧНИКЕ","62 НЕТ В СПРАВОЧНИКЕ"]
[null,null,null,null,"EE","Эстония","EE Эстония",null,null,null,null,null,null,null,null,null,null,null,63,"ПУЛ ПАК","63 ПУЛ ПАК"]
[null,null,null,null,"EG","Египет","EG Египет",null,null,null,null,null,null,null,null,null,null,null,64,"ПЭТ-ПАК","64 ПЭТ-ПАК"]
[null,null,null,null,"EH","Зап.-сахарский",{"$f":" CONCATENATE(LEFT(CONCATENATE(E66, \"  \"),3),F66)","v":"EH Зап.-сахарский"},null,null,null,null,null,null,null,null,null,null,null,65,"ПЮР-ПАК",{"$f":"CONCATENATE(S66:S183, \" \",T66:T183)","v":"65 ПЮР-ПАК"}]
[null,null,null,null,"ER","Эритрея","ER Эритрея",null,null,null,null,null,null,null,null,null,null,null,66,"ПЮР-ПАК КЁРВ","66 ПЮР-ПАК КЁРВ"]
[null,null,null,null,"ES","Испания","ES Испания",null,null,null,null,null,null,null,null,null,null,null,67,"РЕТОРТ-ПАКЕТ","67 РЕТОРТ-ПАКЕТ"]
[null,null,null,null,"ET","Эфиопия","ET Эфиопия",null,null,null,null,null,null,null,null,null,null,null,68,"РЕШЕТКА","68 РЕШЕТКА"]
[null,null,null,null,"EU","Европ. Союз","EU Европ. Союз",null,null,null,null,null,null,null,null,null,null,null,69,"РИГЕЛЛО","69 РИГЕЛЛО"]
[null,null,null,null,"FI","Финляндия","FI Финляндия",null,null,null,null,null,null,null,null,null,null,null,70,"РУЛОН","70 РУЛОН"]
[null,null,null,null,"FJ","Фиджи","FJ Фиджи",null,null,null,null,null,null,null,null,null,null,null,71,"САШЕ","71 САШЕ"]
[null,null,null,null,"FK","Фолкленд. о-ва","FK Фолкленд. о-ва",null,null,null,null,null,null,null,null,null,null,null,72,"СЕТКА","72 СЕТКА"]
[null,null,null,null,"FM","Микронезия","FM Микронезия",null,null,null,null,null,null,null,null,null,null,null,73,"СЛИМ","73 СЛИМ"]
[null,null,null,null,"FO","Фареры","FO Фареры",null,null,null,null,null,null,null,null,null,null,null,74,"СОФТ ТУБ","74 СОФТ ТУБ"]
[null,null,null,null,"FR","Франция","FR Франция",null,null,null,null,null,null,null,null,null,null,null,75,"СТАБИЛО БЭГ","75 СТАБИЛО БЭГ"]
[null,null,null,null,"GA","Габон","GA Габон",null,null,null,null,null,null,null,null,null,null,null,76,"СТАКАНЧИК","76 СТАКАНЧИК"]
[null,null,null,null,"GB","Соед. Королев.","GB Соед. Королев.",null,null,null,null,null,null,null,null,null,null,null,77,"СТИК","77 СТИК"]
[null,null,null,null,"GD","Гренада","GD Гренада",null,null,null,null,null,null,null,null,null,null,null,78,"СТОЯЧИЙ ПАКЕТ","78 СТОЯЧИЙ ПАКЕТ"]
[null,null,null,null,"GE","Грузия","GE Грузия",null,null,null,null,null,null,null,null,null,null,null,79,"ТАРА С ОКОШКОМ","79 ТАРА С ОКОШКОМ"]
[null,null,null,null,"GF","Франц. Гайана","GF Франц. Гайана",null,null,null,null,null,null,null,null,null,null,null,80,"ТАРА-ОБОРУДОВАНИЕ","80 ТАРА-ОБОРУДОВАНИЕ"]
[null,null,null,null,"GH","Гана","GH Гана",null,null,null,null,null,null,null,null,null,null,null,81,"ТАРЕЛКА","81 ТАРЕЛКА"]
[null,null,null,null,"GI","Гибралтар","GI Гибралтар",null,null,null,null,null,null,null,null,null,null,null,82,"ТЕТРА БРИК","82 ТЕТРА БРИК"]
[null,null,null,null,"GL","Гренландия","GL Гренландия",null,null,null,null,null,null,null,null,null,null,null,83,"ТЕТРА ВЕДЖ АСЕПТИК","83 ТЕТРА ВЕДЖ АСЕПТИК"]
[null,null,null,null,"GM","Гамбия","GM Гамбия",null,null,null,null,null,null,null,null,null,null,null,84,"ТЕТРА ЖЕМИНА АСЕПТИК","84 ТЕТРА ЖЕМИНА АСЕПТИК"]
[null,null,null,null,"GN","Гвинея","GN Гвинея",null,null,null,null,null,null,null,null,null,null,null,85,"ТЕТРА КАП","85 ТЕТРА КАП"]
[null,null,null,null,"GP","Гваделупа","GP Гваделупа",null,null,null,null,null,null,null,null,null,null,null,86,"ТЕТРА КИНГ","86 ТЕТРА КИНГ"]
[null,null,null,null,"GQ","Экват. Гвинея","GQ Экват. Гвинея",null,null,null,null,null,null,null,null,null,null,null,87,"ТЕТРА КЛАССИК","87 ТЕТРА КЛАССИК"]
[null,null,null,null,"GR","Греция","GR Греция",null,null,null,null,null,null,null,null,null,null,null,88,"ТЕТРА ПРИЗМА АСЕПТИК","88 ТЕТРА ПРИЗМА АСЕПТИК"]
[null,null,null,null,"GS","Сэндвичевы о-ва","GS Сэндвичевы о-ва",null,null,null,null,null,null,null,null,null,null,null,89,"ТЕТРА РЕКАРТ","89 ТЕТРА РЕКАРТ"]
[null,null,null,null,"GT","Гватемала","GT Гватемала",null,null,null,null,null,null,null,null,null,null,null,90,"ТЕТРА РЕКС","90 ТЕТРА РЕКС"]
[null,null,null,null,"GU","Гуам","GU Гуам",null,null,null,null,null,null,null,null,null,null,null,91,"ТЕТРА ТОП","91 ТЕТРА ТОП"]
[null,null,null,null,"GW","Гвинея-Бисау","GW Гвинея-Бисау",null,null,null,null,null,null,null,null,null,null,null,92,"ТЕТРА ФИНО АСЕПТИК","92 ТЕТРА ФИНО АСЕПТИК"]
[null,null,null,null,"GY","Гайана","GY Гайана",null,null,null,null,null,null,null,null,null,null,null,93,"ТРАНСПОРТНЫЙ ПАКЕТ","93 ТРАНСПОРТНЫЙ ПАКЕТ"]
[null,null,null,null,"HK","Гонконг","HK Гонконг",null,null,null,null,null,null,null,null,null,null,null,94,"ТУБА","94 ТУБА"]
[null,null,null,null,"HM","о. Херд","HM о. Херд",null,null,null,null,null,null,null,null,null,null,null,95,"ТУБУС","95 ТУБУС"]
[null,null,null,null,"HN","Гондурас","HN Гондурас",null,null,null,null,null,null,null,null,null,null,null,96,"УПАКОВКА АВТОКОСМЕТИКИ","96 УПАКОВКА АВТОКОСМЕТИКИ"]
[null,null,null,null,"HR","Хорватия","HR Хорватия",null,null,null,null,null,null,null,null,null,null,null,97,"УПАКОВКА ИЗ РАСТЯГИВАЮЩЕЙСЯ ПЛЕНКИ",{"$f":"CONCATENATE(S98:S215, \" \",T98:T215)","v":"97 УПАКОВКА ИЗ РАСТЯГИВАЮЩЕЙСЯ ПЛЕНКИ"}]
[null,null,null,null,"HT","Гаити","HT Гаити",null,null,null,null,null,null,null,null,null,null,null,98,"УПАКОВКА ИЗ УСАДОЧНОЙ ПЛЕНКИ","98 УПАКОВКА ИЗ УСАДОЧНОЙ ПЛЕНКИ"]
[null,null,null,null,"HU","Венгрия","HU Венгрия",null,null,null,null,null,null,null,null,null,null,null,99,"УПАКОВКА МНОГОКОМПОНЕНТНЫХ ПРОДУКТОВ","99 УПАКОВКА МНОГОКОМПОНЕНТНЫХ ПРОДУКТОВ"]
[null,null,null,null,"ID","Индонезия","ID Индонезия",null,null,null,null,null,null,null,null,null,null,null,100,"УПАКОВКА МНОГОРАЗОВОГО ИСПОЛЬЗОВАНИЯ","100 УПАКОВКА МНОГОРАЗОВОГО ИСПОЛЬЗОВАНИЯ"]
[null,null,null,null,"IE","Ирландия","IE Ирландия",null,null,null,null,null,null,null,null,null,null,null,101,"УПАКОВКА С ПУЛЬВЕРИЗАТОРОМ","101 УПАКОВКА С ПУЛЬВЕРИЗАТОРОМ"]
[null,null,null,null,"IL","Израиль","IL Израиль",null,null,null,null,null,null,null,null,null,null,null,102,"ФАННЕЛПАК","102 ФАННЕЛПАК"]
[null,null,null,null,"IN","Индия","IN Индия",null,null,null,null,null,null,null,null,null,null,null,103,"ФИННПАК","103 ФИННПАК"]
[null,null,null,null,"IO","БритТерр ИндОк","IO БритТерр ИндОк",null,null,null,null,null,null,null,null,null,null,null,104,"ФЛАКОН","104 ФЛАКОН"]
[null,null,null,null,"IQ","Ирак","IQ Ирак",null,null,null,null,null,null,null,null,null,null,null,106,"ФЛОУПАК",{"$f":"CONCATENATE(S106:S224, \" \",T106:T224)","v":"106 ФЛОУПАК"}]
[null,null,null,null,"IR","Иран","IR Иран",null,null,null,null,null,null,null,null,null,null,null,107,"ФЛЯГА","107 ФЛЯГА"]
[null,null,null,null,"IS","Исландия","IS Исландия",null,null,null,null,null,null,null,null,null,null,null,108,"ФУТЛЯР","108 ФУТЛЯР"]
[null,null,null,null,"IT","Италия","IT Италия",null,null,null,null,null,null,null,null,null,null,null,109,"ЦИСТЕРНА","109 ЦИСТЕРНА"]
[null,null,null,null,"JM","Ямайка","JM Ямайка",null,null,null,null,null,null,null,null,null,null,null,110,"ЧАЛДА","110 ЧАЛДА"]
[null,null,null,null,"JO","Иордания","JO Иордания",null,null,null,null,null,null,null,null,null,null,null,111,"ЧЕХОЛ","111 ЧЕХОЛ"]
[null,null,null,null,"JP","Япония","JP Япония",null,null,null,null,null,null,null,null,null,null,null,112,"ЧИЕРПАК","112 ЧИЕРПАК"]
[null,null,null,null,"KE","Кения","KE Кения",null,null,null,null,null,null,null,null,null,null,null,113,"ШТАБЕЛЬ","113 ШТАБЕЛЬ"]
[null,null,null,null,"KG","Киргизия","KG Киргизия",null,null,null,null,null,null,null,null,null,null,null,114,"ШТОФ","114 ШТОФ"]
[null,null,null,null,"KH","Камбоджа","KH Камбоджа",null,null,null,null,null,null,null,null,null,null,null,115,"ЭКОЛИН","115 ЭКОЛИН"]
[null,null,null,null,"KI","Кирибати","KI Кирибати",null,null,null,null,null,null,null,null,null,null,null,116,"ЯИЧНАЯ УПАКОВКА","116 ЯИЧНАЯ УПАКОВКА"]
[null,null,null,null,"KM","Коморские о-ва","KM Коморские о-ва",null,null,null,null,null,null,null,null,null,null,null,117,"ЯЩИК","117 ЯЩИК"]
[null,null,null,null,"KN","Ст. Киттс&Невис","KN Ст. Киттс&Невис",null,null,null,null,null,null,null,null,null,null,null,118,"БЕЗ УПАКОВКИ","118 БЕЗ УПАКОВКИ"]
[null,null,null,null,"KP","Северная Корея","KP Северная Корея",null,null,null,null,null,null,null,null,null,null,null,119,"НЕТ В СПРАВОЧНИКЕ","119 НЕТ В СПРАВОЧНИКЕ"]
[null,null,null,null,"KR","Южная Корея","KR Южная Корея"]
[null,null,null,null,"KW","Кувейт","KW Кувейт"]
[null,null,null,null,"KY","Каймановы о-ва","KY Каймановы о-ва"]
[null,null,null,null,"KZ","Казахстан","KZ Казахстан"]
[null,null,null,null,"LA","Лаос","LA Лаос"]
[null,null,null,null,"LB","Ливан","LB Ливан"]
[null,null,null,null,"LC","Сент-Люсия","LC Сент-Люсия"]
[null,null,null,null,"LI","Лихтенштейн","LI Лихтенштейн"]
[null,null,null,null,"LK","Шри-Ланка","LK Шри-Ланка"]
[null,null,null,null,"LR","Либерия","LR Либерия"]
[null,null,null,null,"LS","Лесото",{"$f":" CONCATENATE(LEFT(CONCATENATE(E130, \"  \"),3),F130)","v":"LS Лесото"}]
[null,null,null,null,"LT","Литва","LT Литва"]
[null,null,null,null,"LU","Люксембург","LU Люксембург"]
[null,null,null,null,"LV","Латвия","LV Латвия"]
[null,null,null,null,"LY","Ливия","LY Ливия"]
[null,null,null,null,"MA","Марокко","MA Марокко"]
[null,null,null,null,"MC","Монако","MC Монако"]
[null,null,null,null,"MD","Молдавия","MD Молдавия"]
[null,null,null,null,"ME","Черногория","ME Черногория"]
[null,null,null,null,"MG","Мадагаскар","MG Мадагаскар"]
[null,null,null,null,"MH","Маршалловы о-ва","MH Маршалловы о-ва"]
[null,null,null,null,"MK","Македония","MK Македония"]
[null,null,null,null,"ML","Мали","ML Мали"]
[null,null,null,null,"MM","Мьянма","MM Мьянма"]
[null,null,null,null,"MN","Монголия","MN Монголия"]
[null,null,null,null,"MO","Макао","MO Макао"]
[null,null,null,null,"MP","С.-Мариан. о-ва","MP С.-Мариан. о-ва"]
[null,null,null,null,"MQ","Мартиника","MQ Мартиника"]
[null,null,null,null,"MR","Мавритания","MR Мавритания"]
[null,null,null,null,"MS","Монтсеррат","MS Монтсеррат"]
[null,null,null,null,"MT","Мальта","MT Мальта"]
[null,null,null,null,"MU","Маврикий","MU Маврикий"]
[null,null,null,null,"MV","Мальдивск. о-ва","MV Мальдивск. о-ва"]
[null,null,null,null,"MW","Малави","MW Малави"]
[null,null,null,null,"MX","Мексика","MX Мексика"]
[null,null,null,null,"MY","Малайзия","MY Малайзия"]
[null,null,null,null,"MZ","Мозамбик","MZ Мозамбик"]
[null,null,null,null,"NA","Намибия","NA Намибия"]
[null,null,null,null,"NC","Новая Каледония","NC Новая Каледония"]
[null,null,null,null,"NE","Нигер","NE Нигер"]
[null,null,null,null,"NF","О. Норфолк","NF О. Норфолк"]
[null,null,null,null,"NG","Нигерия","NG Нигерия"]
[null,null,null,null,"NI","Никарагуа","NI Никарагуа"]
[null,null,null,null,"NL","Нидерланды","NL Нидерланды"]
[null,null,null,null,"NO","Норвегия","NO Норвегия"]
[null,null,null,null,"NP","Непал","NP Непал"]
[null,null,null,null,"NR","Науру","NR Науру"]
[null,null,null,null,"NT","НАТО","NT НАТО"]
[null,null,null,null,"NU","Ниуэ","NU Ниуэ"]
[null,null,null,null,"NZ","Новая Зеландия","NZ Новая Зеландия"]
[null,null,null,null,"OM","Оман","OM Оман"]
[null,null,null,null,"OR","Оранжевый","OR Оранжевый"]
[null,null,null,null,"PA","Панама","PA Панама"]
[null,null,null,null,"PE","Перу","PE Перу"]
[null,null,null,null,"PF","Фр. Полинезия","PF Фр. Полинезия"]
[null,null,null,null,"PG","Папуа-Н. Гвинея","PG Папуа-Н. Гвинея"]
[null,null,null,null,"PH","Филиппины","PH Филиппины"]
[null,null,null,null,"PK","Пакистан","PK Пакистан"]
[null,null,null,null,"PL","Польша","PL Польша"]
[null,null,null,null,"PM","С.-Пьер,Микелон","PM С.-Пьер,Микелон"]
[null,null,null,null,"PN","О-ва Питкэрн","PN О-ва Питкэрн"]
[null,null,null,null,"PR","Пуэрто-Рико","PR Пуэрто-Рико"]
[null,null,null,null,"PS","Палестина","PS Палестина"]
[null,null,null,null,"PT","Португалия","PT Португалия"]
[null,null,null,null,"PW","Палау","PW Палау"]
[null,null,null,null,"PY","Парагвай","PY Парагвай"]
[null,null,null,null,"QA","Катар","QA Катар"]
[null,null,null,null,"RE","Реюньон","RE Реюньон"]
[null,null,null,null,"RO","Румыния","RO Румыния"]
[null,null,null,null,"RS","Сербия","RS Сербия"]
[null,null,null,null,"RU","Россия","RU Россия"]
[null,null,null,null,"RW","Руанда","RW Руанда"]
[null,null,null,null,"SA","Сауд. Аравия","SA Сауд. Аравия"]
[null,null,null,null,"SB","Соломоновы о-ва","SB Соломоновы о-ва"]
[null,null,null,null,"SC","Сейшельск. о-ва",{"$f":" CONCATENATE(LEFT(CONCATENATE(E194, \"  \"),3),F194)","v":"SC Сейшельск. о-ва"}]
[null,null,null,null,"SD","Судан","SD Судан"]
[null,null,null,null,"SE","Швеция","SE Швеция"]
[null,null,null,null,"SG","Сингапур","SG Сингапур"]
[null,null,null,null,"SH","О. Св. Елены","SH О. Св. Елены"]
[null,null,null,null,"SI","Словения","SI Словения"]
[null,null,null,null,"SJ","Шпицберген","SJ Шпицберген"]
[null,null,null,null,"SK","Словакия","SK Словакия"]
[null,null,null,null,"SL","Сьерра-Леоне","SL Сьерра-Леоне"]
[null,null,null,null,"SM","Сан-Марино","SM Сан-Марино"]
[null,null,null,null,"SN","Сенегал","SN Сенегал"]
[null,null,null,null,"SO","Сомали","SO Сомали"]
[null,null,null,null,"SR","Суринам","SR Суринам"]
[null,null,null,null,"ST","С.-Томе и Прин.","ST С.-Томе и Прин."]
[null,null,null,null,"SV","Сальвадор","SV Сальвадор"]
[null,null,null,null,"SY","Сирия","SY Сирия"]
[null,null,null,null,"SZ","Свазиленд","SZ Свазиленд"]
[null,null,null,null,"TC","Теркс, Кайкос","TC Теркс, Кайкос"]
[null,null,null,null,"TD","Чад","TD Чад"]
[null,null,null,null,"TF","French S.Territ","TF French S.Territ"]
[null,null,null,null,"TG","Того","TG Того"]
[null,null,null,null,"TH","Таиланд","TH Таиланд"]
[null,null,null,null,"TJ","Таджикистан","TJ Таджикистан"]
[null,null,null,null,"TK","О-ва Токелау","TK О-ва Токелау"]
[null,null,null,null,"TL","Вост. Тимоа","TL Вост. Тимоа"]
[null,null,null,null,"TM","Туркменистан","TM Туркменистан"]
[null,null,null,null,"TN","Тунис","TN Тунис"]
[null,null,null,null,"TO","Тонга","TO Тонга"]
[null,null,null,null,"TP","Восточный Тимор","TP Восточный Тимор"]
[null,null,null,null,"TR","Турция","TR Турция"]
[null,null,null,null,"TT","Тринидад,Тобаго","TT Тринидад,Тобаго"]
[null,null,null,null,"TV","Тувалу","TV Тувалу"]
[null,null,null,null,"TW","Тайвань","TW Тайвань"]
[null,null,null,null,"TZ","Танзания","TZ Танзания"]
[null,null,null,null,"UA","Украина","UA Украина"]
[null,null,null,null,"UG","Уганда","UG Уганда"]
[null,null,null,null,"UM","Мал. Аутл. о.","UM Мал. Аутл. о."]
[null,null,null,null,"UN","Объед. нации","UN Объед. нации"]
[null,null,null,null,"US","США","US США"]
[null,null,null,null,"UY","Уругвай","UY Уругвай"]
[null,null,null,null,"UZ","Узбекистан","UZ Узбекистан"]
[null,null,null,null,"VA","Ватикан","VA Ватикан"]
[null,null,null,null,"VC","Сент-Винсент","VC Сент-Винсент"]
[null,null,null,null,"VE","Венесуэла","VE Венесуэла"]
[null,null,null,null,"VG","Брит.Виргинс.о.","VG Брит.Виргинс.о."]
[null,null,null,null,"VI","Амер.Виргинс.о.","VI Амер.Виргинс.о."]
[null,null,null,null,"VN","Вьетнам","VN Вьетнам"]
[null,null,null,null,"VU","Вануату","VU Вануату"]
[null,null,null,null,"WF","Уоллис, Футуна","WF Уоллис, Футуна"]
[null,null,null,null,"WS","Зап. Самоа","WS Зап. Самоа"]
[null,null,null,null,"YE","Йемен","YE Йемен"]
[null,null,null,null,"YT","Майотта","YT Майотта"]
[null,null,null,null,"ZA","Южная Африка","ZA Южная Африка"]
[null,null,null,null,"ZM","Замбия","ZM Замбия"]
[null,null,null,null,"ZW","Зимбабве","ZW Зимбабве"]

{"sheet":"Инструкция","index":3,"n_rows":101,"n_cols":5,"rows_kept":101,"cut":false,"hidden":false,"merged":[[77,1,77,2],[86,1,100,1],[66,1,66,2],[83,1,83,2],[84,1,84,2],[85,1,85,2],[81,1,81,2],[82,1,82,2],[72,1,72,2],[78,1,78,2],[79,1,79,2],[80,1,80,2],[67,1,67,2],[68,1,68,2],[69,1,69,2],[70,1,70,2],[71,1,71,2],[73,1,73,2],[76,1,76,2],[25,1,32,1],[33,1,41,1],[42,1,50,1],[51,1,55,1],[56,1,62,1],[63,1,63,2],[64,1,64,2],[65,1,65,2],[74,1,74,2],[75,1,75,2],[0,1,0,2],[23,1,23,2],[17,3,22,3],[11,1,13,1],[14,1,14,2],[15,1,15,2],[24,1,24,2],[5,1,5,2],[16,1,16,2],[1,1,1,2],[2,1,2,2],[3,1,3,2],[4,1,4,2],[10,1,10,2],[7,1,7,2],[8,1,8,2],[9,1,9,2],[17,1,22,1],[6,1,6,2],[36,3,38,3],[45,3,47,3],[45,4,47,4],[53,3,55,3],[60,3,62,3]]}
["№ столбца","Поле",null,"Описание","Обазательное поле"]
[1,"Порядковый номер",null,"номер строки","Да"]
[2,"Код торговой марки в SAP",null,"вводится код торговой марки","Нет"]
[3,"Название торговой марки на языке оригинала  (ТМ)",null,"Указывается торговая марка товара в соответствии с упаковкой","Да, за исключением товаров без торнговой марки"]
[4,"Полное наименование товара у Поставщика\n(с указанием Торговой марки, веса, объема, емкости, ед.изм.)",null,"заполняется в соответствии с упаковкой (сертификатом) без сокращений, без ограничений по количеству символов.","Да"]
[5,"Наименование товара (EN)",null,"Наименование товара на английском языке","Нет"]
[6,"Наименование online",null,"Формируется по следующему принципу: Вид + «Название торговой марки (производитель/Вендор, в случае отсутствия торговой марки)» + ключевые свойства + количество/вес. Не должно содержать сокращения. Торговая марка заключается в кавычки. Все слова в нижнем регистре (кроме первой буквы первого слова и первых буков наименований – например, торговой марки). Например: Джем \"Красная цена\" домашний черничный 0.4кг","Да"]
[7,"Единица измерения (шт, кг)",null,"Для весовых товаров - кг, для фасованных с фиксирвоанным весом - шт. Значение из списка.*","Да"]
[8,"вес НЕТТО единицы товара, кг",null,"масса товара без упаковки","Да"]
[9,"Тара",null,"выбирается из списка","Нет"]
[10,"Состав товара, полностью без сокращений",null,"Указывается состав товара в соответствии с упаковкой","Да, за исключением сопутствующих товаров"]
[11,"Пищевая ценность продуктов питания на 100 гр.","Белки, гр","Указывается содержание белка в 100 гр., в соответствии с упаковкой","Да, для пищевых продуктов"]
[12,null,"Жиры, гр","Указывается содержание жиров в 100 гр., в соответствии с упаковкой","Да, для пищевых продуктов"]
[13,null,"Углеводы, гр","Указывается содержание углеводов в 100 гр., в соответствии с упаковкой","Да, для пищевых продуктов"]
[14,"Энергетическая ценность, в кКал",null,"В соответствии с упаковкой","Да, для пищевых продуктов"]
[15,"Температура хранения, мин/макс",null,"Указывается допустимый диапазон температур в соответствии с упаковкой","Да"]
["16","Маркировка \nИнформация должна содержать следующие сведения, и внесена в данной последовательности: \n1.Наименование продукции, вкл. термическое состояние, сорт, категории, вид разделки, массовая доля глазури (для замороженной рыбы, креветок и т.д.)\n2. Состав\n3. Пищевая ценность в 100г продукта (белки, жиры, углеводы)\n4. Энергетическая ценность в ккал.\n5. Рекомендации по приготовлению.\n6. Нормативный документ, в соответствии с которым изготовлена данная продукция.\n7. Сроки годности \n8. Условия хранения.\n9. Наименование и адрес организации – изготовителя.\n10. Информация о подтверждении соответствия.\n11. Дата упаковывания соответствует дате изготовления.",null,"Информация должна содержать следующие сведения, и внесена в данной последовательности: \n1.Наименование продукции, вкл. термическое состояние, сорт, категории, вид разделки, массовая доля глазури (для замороженной рыбы, креветок и т.д.)\n2. Состав\n3. Пищевая ценность в 100г продукта (белки, жиры, углеводы)\n4. Энергетическая ценность в ккал.\n5. Рекомендации по приготовлению.\n6. Нормативный документ, в соответствии с которым изготовлена данная продукция.\n7. Сроки годности \n8. Условия хранения.\n9. Наименование и адрес организации – изготовителя.\n10. Информация о подтверждении соответствия.\n11. Дата упаковывания соответствует дате изготовления.","Да"]
[17,"Товарная классификация для поставщиков","Уровень 1","Классификация по видам товара, объединенным на основании схожих свойств. Заполняется выбором из списка, последовательно начиная с 1 уровня","Да"]
[18,null,"Уровень 2",null,"Да"]
[19,null,"Уровень 3",null,"Да"]
[20,null,"Уровень 4",null,"Да, если есть значения после заполнения предыдущих уровней"]
[21,null,"Уровень 5",null,"Да, если есть значения после заполнения предыдущих уровней"]
[22,null,"Уровень 6",null,"Да, если есть значения после заполнения предыдущих уровней"]
[23,"Емкость в литрах     ",null,"В случае, где емкость в жидком состоянии, в л.","Да, для товаров в жидком состоянии"]
[24,"Кол-во единиц употребления в продажной упаковке.",null,"пример: количество рулонов туалетной бумаги в упаковке. Указывается кол-во отдельных единиц потребления в упаковке. Кол-во печенья не требуется","Нет"]
[25,"Единица (обязательный уровень) - ACH","GTIN (Штрихкод торговой единицы) ","GTIN применяется для уникальной идентификации предметов торговли по всему миру.\nПредметом торговли называется любой товар (продукция или услуга), по которому требуется найти предварительно заданную информацию и на который может быть установлена цена, выдан заказ или выставлен счёт в любой точке любой цепи поставок","Да"]
[26,null,"Вес БРУТТО единицы товара, кг","вес товара с упаковкой","Да"]
[27,null,"Высота, мм","высота товара в мм (фейсом к покупателю)","Да"]
[28,null,"Ширина, мм","ширина товара в мм (фейсом к покупателю)","Да"]
[29,null,"Глубина (Длина), мм","размер товара в мм от лицевой стороны от покупателя (фейсом к покупателю)","Да"]
[30,null,"Признак выкладки (Шоу-бокс, SRP)","вид упаковки предназначен для быстрой выкладки товаров в торговых залах. Как правило используется для транспортировки и выкладки продуктов питания, а также товаров DIY сектора. Выбирается из списка","Нет"]
[31,null,"Тип упаковки","выбирается из списка","Да"]
[32,null,"Материал упаковки","выбирается из списка","Да"]
[33,"Блок - BLK","GTIN (Штрихкод торговой единицы) ",{"$f":"D26","v":"GTIN применяется для уникальной идентификации предметов торговли по всему миру.\nПредметом торговли называется любой товар (продукция или услуга), по которому требуется найти предварительно заданную информацию и на который может быть установлена цена, выдан заказ или выставлен счёт в любой точке любой цепи поставок"},"Нет"]
[34,null,"Вес БРУТТО, кг","вес товара с упаковкой","Нет"]
[35,null,"Количество штук (кг) в блоке","количество продажных упаковок в блоке, для весового товара килограммов в блоке","Нет"]
[36,null,"Высота, мм","Размеры блока","Нет"]
[37,null,"Ширина, мм",null,"Нет"]
[38,null,"Глубина (Длина), мм",null,"Нет"]
[39,null,"Признак выкладки (Шоу-бокс, SRP)",{"$f":"D31","v":"вид упаковки предназначен для быстрой выкладки товаров в торговых залах. Как правило используется для транспортировки и выкладки продуктов питания, а также товаров DIY сектора. Выбирается из списка"},"Нет"]
[40,null,"Тип упаковки","выбирается из списка","Нет"]
[41,null,"Материал упаковки","выбирается из списка","Нет"]
[42,"Короб (обязательный уровень) - BOX","GTIN (Штрихкод)","Штрихкод короба","Да, для товаров поставляемых через РЦ"]
[43,null,"Вес БРУТТО, кг",{"$f":"D35","v":"вес товара с упаковкой"},"Да, для товаров поставляемых через РЦ"]
[44,null,"Количество штук (кг) в коробе","количество продажных упаковок в коробке для весового товара килограммов в коробке","Да, для товаров поставляемых через РЦ"]
[45,null,"Высота, мм","Размеры короба","Да, для товаров поставляемых через РЦ"]
[46,null,"Ширина, мм"]
[47,null,"Глубина (Длина), мм"]
[48,null,"Признак выкладки (Шоу-бокс, SRP)",{"$f":"D40","v":"вид упаковки предназначен для быстрой выкладки товаров в торговых залах. Как правило используется для транспортировки и выкладки продуктов питания, а также товаров DIY сектора. Выбирается из списка"},"Нет"]
[49,null,"Тип упаковки","выбирается из списка","Да, для товаров поставляемых через РЦ"]
[50,null,"Материал упаковки","выбирается из списка","Да, для товаров поставляемых через РЦ"]
[51,"Слой - LAY","Вес БРУТТО, кг","вес товара в слое вместе с упаковкой","Да, для товаров поставляемых через РЦ"]
[52,null,"Количество штук (кг) в слое","количество штук или килограмм размещаемых в слое","Да, для товаров поставляемых через РЦ"]
[53,null,"Высота, м","Размер слоя","Да, для товаров поставляемых через РЦ"]
[54,null,"Ширина, м",null,"Да, для товаров поставляемых через РЦ"]
[55,null,"Глубина (Длина), м",null,"Да, для товаров поставляемых через РЦ"]
[56,"Паллета (обязательный уровень) - PLT","GTIN (Штрихкод)","Штрихкод паллеты","Нет"]
[57,null,"Вес БРУТТО, кг","вес товара на паллете суммарно с весом поддона","Да, для товаров поставляемых через РЦ"]
[58,null,"Количество штук (кг) на паллете","количество штук или килограмм размещаемых на паллете","Да, для товаров поставляемых через РЦ"]
[59,null,"Кол-во упак.на паллете","количество коробов на паллете","Да, для товаров поставляемых через РЦ"]
[60,null,"Высота, м","Размер паллета","Да, для товаров поставляемых через РЦ"]
[61,null,"Ширина, м",null,"Да, для товаров поставляемых через РЦ"]
[62,null,"Глубина (Длина), м",null,"Да, для товаров поставляемых через РЦ"]
[63,"Производитель товара (на языке оригинала), указанный в сертификате и на упаковке товара",null,"Указывается наименование производителя товара в соответствии с упаковкой и разрешительными документами","Да"]
[64,"№ Документа (сертификата / декларации)",null,null,"Да"]
[65,"Код ОКПД (по сертификату, декларации и т.п.)",null,null,"Да"]
[66,"Код ТНВЭД (по сертификату, декларации и т.п.)",null,null,"Да"]
[67,"Страна изготовитель",null,"Указывается страна производитель, выбирается из справочника","Да"]
[68,"НДС поставщика\n(0% / 10% / 18%)",null,"ставка НДС выбирается из справочника","Да"]
[69,"Срок годности, дней",null,"указывается срок годности в соответствии с упаковкой, при нескольких сроках годности для различных условий хранения указывается минимальный","Да"]
[70,"Собственное производство",null,"выбирается из списка","Да"]
[71,"СТМ (да/нет)",null,"выбирается из списка","Да"]
[72,"Сегментация",null,"выбирается из списка","Нет"]
[73,"Готов к употреблению",null,"выбирается из списка","Нет"]
[74,"Категория риска",null,"выбирается из списка","Да"]
[75,"Способы хранения",null,"выбирается из списка","Да"]
[76,"Детское питание",null,"выбирается из списка","Нет"]
[77,"Ценовой сегмент",null,"выбирается из списка","Нет"]
[78,"Группа товара (нижний уровень иерархии)",null,"Указывается категория товара - внутренняя классификация (УИ4)","Нет"]
[79,"Социально значимый товар",null,"выбирается из списка","Нет"]
[80,"Участвует в расчете бонусов",null,"выбирается из списка","Нет"]
[81,"Тендер",null,"выбирается из списка","Нет"]
[82,"Печать страны на ценнике (да/нет)",null,"выбирается из списка","Нет"]
[83,"Номер вендора в SAP (производитель товара)",null,"Указывается вендора (производителя) в системе SAP ERP X5","Нет"]
[84,"Наименование вендора (производителя)",null,"Наименование производителя товара","Да"]
[85,"Код поставщика в SAP",null,"Указывается номер поставщика в системе SAP ERP X5","Да"]
[86,"Алкоголь","Производитель алкоголя","Наименование производителя алкогольной продукции","Да, для алкогольной продукции"]
[87,null,"ИНН производителя/импортера ",null,"Да, для алкогольной продукции"]
[88,null,"КПП производителя/импортера",null,"Да, для алкогольной продукции"]
[89,null,"Акцизный товар",null,"Да, для алкогольной продукции"]
[90,null,"Содержание этилового спирта в %",null,"Да, для алкогольной продукции"]
[91,null,"Тип лицензируемости алкоголя (только для алкоголя)","выбирается из списка","Да, для алкогольной продукции"]
[92,null,"Код ФНС (код вида продукции в соответствии с РАР)",null,"Да, для алкогольной продукции"]
[93,null,"Код ФНС новый",null,"Да, для алкогольной продукции"]
[94,null,"Тип расчета МРЦ (только для алкоголя c содержанием спирта более 28%)","выбирается из списка","Да, для алкогольной продукции"]
[95,null,"Код продукта в ЕГАИС",null,"Да, для алкогольной продукции"]
[96,null,"Регион виноделия",null,"Да, для алкогольной продукции"]
[97,null,"Наименование Производителя/Импортера",null,"Да, для алкогольной продукции"]
[98,null,"Кол-во единиц в алконаборе","Указать количество бутылок в наборе","Нет, для алкогольной продукции"]
[99,null,"Регион виноделия",null,"Нет, для алкогольной продукции"]
[100,null,"Географический классификатор",null,"Нет, для алкогольной продукции"]

{"sheet":"class","index":4,"n_rows":42,"n_cols":388,"rows_kept":42,"cut":false,"hidden":true,"merged":[]}
["ОСНОВА!","компьютерная техника","носители информации портативные","изделия ювелирные, бижутерия","спорт","силовой инвентарь","спортивный инвентарь","фитнес","зимний инвентарь","тренажеры","сад и огород","садовый декор","уход за садом","садовый инвентарь","растения","садовая мебель и фурнитура","детские товары","игрушки","игровые комплексы","купание и уход","посуда для новорожденных","предметы для безопасности ребенка","товары для новорожденных и мам","коляски и автокресла","бакалея","бытовая химия","детское питание","каши","кондитерские изделия","косметика","дезодоранты и антиперсперанты","кофе","кулинария","готовая кулинария","охлажденная кулинария","медиа(книги, диски, пресса и т.д.)","молоко и молочные товары","мясо и мясные продукты","напитки","одежда","одежда для сна и отдыха","одежда для новорожденных","купальные костюмы","аксессуары для одежды","головные уборы и аксессуары","верхняя одежда","приправы и пряности","продукты диетические","продукция для животных","рыба и рыбные товары","табачные изделия и аксессуары","аксессуары к табачным изделиям","фрукты, овощи, орехи","хлеб и хлебобулочные изделия","товары для дома, хозтовары","бытовые принадлежности","лампы накаливания","посуда","кухонная посуда","сервировочная посуда","одноразовая посуда","товары для ванной, туалета","чай","яйцо","завтраки","крупа","мука","продукты быстрого приготовления","Пищевые ингредиенты","сахар и сахарозаменители","свеколичный сахар","тростниковый сахар","инсектициды, репелленты","освежители воздуха","средства для мытья посуды","средства для посудомоечных машин","средства для стирки","средства по уходу за мебелью","средства по уходу за обувью","средства по уходу за одеждой","чистящие средства","консервы","молочные продукты","мясо и мясные изделия","прочее десткое питание","восточные сладости","изделия мучные кондитерские","кондитерские сахаристые изделия","шоколадные изделия","бритье","декоративная косметика","средства гигиены","средства для загара","средства для ухода за кожей","средства против загара","какао","замороженные кулинария","соленья","йогурты","кисломолочные продукты","национальные продукты","маргарин, спред, майонез и др. пищевые жиры","масло, топленые смеси","молоко","пищевые добавки для коктейлей","трубочки для молока","мороженое и десерты замороженные прочие","сливки","сметана и сметанный продукт","сырный продукт","творог","творожные продукты","колбасные изделия","мясные консервы","мясные копчености","мясо в маринаде","мясо мороженое","мясо охлажденное","напитки алкогольные","напитки безалкогольные","вода","напитки слабоалкогольные","нижнее белье","чулочно-носочные изделия","пряности","уксус, приправы, горчица","для диабетического питания","напитки диабетические","корма","лакомства","поводки","туалеты, наполнители для туалетов","икра","консервы рыбные","крабовое мясо, палочки","морепродукты","пресервы рыбные","рыба охлажденная, живая, замороженная","рыба сушеная, вяленая, копченая, соленая","субпродукты свиные охлажденные","рыбные полуфабрикаты, рыбные изделия","замороженные фрукты, овощи, ягоды","консервированные","орехи, семена","свежие","снэки","сушеные","длительного хранения","недлительного хранения","полуфабрикаты хлебобулочные","бумажно-целюлозная продукция","инвентарь для уборки","зеленый чай","черный чай","каши2","горох крупа","рис","супы и бульоны в жидком виде","сухие супы и бульоны","сахар с добавками","инсектициды","репелленты","пятновыводители, отбеливатели","аксессуасары для обуви","губка","средства для чистки кафеля, сантехники","средства для чистки ковров, мягкой мебели","средства для чистки плит и духовок","средства для чистки стекол","средства для чистки труб","средства для чистки унитаза","универсальные чистящие средства","мясоовощные","овощные","фруктово-овощные","фруктовые консервы","сухие молоко и молочные смеси","колбасные изделия (мясо и мясные изделия)","пирожные","конфеты","мармелад","бритвенные станки","средства для бритья","средства для депиляции","средства после бритья","дезодорантыи антиперсперанты","ватная продукция","мыло","подгузники","прокладки","средства для душа","тампоны","туалетная бумага","уход за зубами и полостью рта","уход за кожей лица","уход за кожей ног","уход за кожей рук","уход за кожей тела","лечение волос","окраска волос","средства для мытья волос","средства для укладки волос","гриль","прочие замроженные","спреды","сгущенные молочные продукты","стаканчик","торты, кексы, пирожные и десерты из мороженого","желе, соусы, кремы, пудинги, муссы, пасты, суфле сметанные","колбаски","колбасы","прочие колбасные изделия","мясо животных","мясорастительные","птица мороженая","птица охлажденная","вина виноградные","вина плодовые","винные напитки","коньяки, бренди, коньячные напитки","ликёро-водочные","шампанское, вина игристые","сироп","соковая продукция","коктейли","перец","корм для кошек","корм для собак","наполнители для туалетов","в масле","из печени трески","натуральные","рыбоовощные","крабовое мясо","крабовые палочки","прочие пресервы рыбные","пряного посола","специального посола","живая","замороженная","охлажденная","рыба(кроме сельди)","соленая рыба","копченая рыба","сельдь","пасты и паштеты из рыбы","рыбный фарш","замороженные овощи, грибы","замороженные фрукты, ягоды","консервированные овощи, грибы","консервированные фрукты, ягоды","бахчевые","зелень","овощи свежие","фрукты свежие","сливы","персики","ягоды свежие","сушеные овощи, грибы","классический хлеб","мелкоштучные изделия","национальный хлеб","пакеты (инвентарь)","подарочные пакеты, бумага (инвентарь)","пакеты (фольга, бумага, пакеты)2","подарочные пакеты, бумага","аэрозоль, спрей инсектициды","гель инсектициды","жидкость для фумигатора","лента","ловушки","пластины","пластины для фумигатора","прочие инсектициды","секции","спираль","фумигатор","аэрозоль, спрей  репелленты","крем репелленты","отбеливатели","пятновыводители","гигиенический блок","каши молочные сухие, смеси","молочные смеси","напитки сокосодержащие","мужские","прочие дезодорантыи антиперсперанты","для детей","зубные щетки","молокосодержащие сгущенный продукт","сгущенное молоко","сгущенные сливки","торты из мороженого","варено-копченые","вареные","полукопченые колбаски","полукопченые колбасы","сырокопченые","консервы кусковые","говядина","свинина варено-копченная","свинина запеченная","свинина копчено-запеченная","индейка охл","пюре","красные соусы","балычные изделия(кроме сельди)","грибы консервированные","овощное ассорти","огурцы консервированные","помидоры консервированные","семена подсолнечника","цитрусовые","экзотика","конверт","плоды, фрукты, ягоды, цукаты, глазированные шоколадной и шоколадно-молочной глазурью","плоды, фрукты, ягоды, цукаты, глазированные помадой и сахарной глазурью","сервелат","молочко репелленты","средства для чистки мебели","средства для маникюра или педикюра","прочие подарочные наборы","одноразовые пеленки","сыр рассольный","изюм","автотовары","обслуживание автомобиля","химия, косметика, аксессуары","электроника автомобильная","масла","аудио товары автомобильные","видео/навигация автомобильные","аудио/видео, фотоаппараты","аудио-видео оборудование","запись и воспроизведение видео","прием и установка видео","телевизоры","фотография и оптика","электрические провода и кабели","бытовая техника","крупная бытовая техника","мелкая бытовая техника","кухонная моющая техника","основная кухонная техника","основная прачечная техника","холодильная и замораживающая техника","красота и здоровье","портативная климатическая техника","предметы ухода за бельём","техника для приготовления еды/напитков","устройства для готовки нагревающие","чистящая и моющая техника","элементы питания и зарадные устройства","галантерея","галантерейные аксессуары","кожгалантерея","канцтовары","бумага, карточки, пленка","канцелярские ножи, роликовые резаки","ленты, переплетчики, скрепление документов","планировщики","средства для письма, коррекции","хранение документов, книг, прочего","обувь","обувь домашняя","обувь защитная","обувь общего назначения","обувь спортивная","офисная техника и принадлежности","средства коммуникации","мобильные устройства","стационарные устройства","товары для отдыха","кемпинг","пикник","товары для бани","товары для праздника","для нового года и рождества","товары для ремонта","инструменты ручные (без источника питания)","строительные изделия","хранение инструментов","электроинструмент","мебель, интерьеры","декоративная мебель, свет","детская мебель","мебель для дома, офиса","текстиль, прочие материалы"]
["автотовары","аксессуары для компьютера","гибкие диски (CD,DVD,прочие)","изделия из серебра","силовой инвентарь","гантели, гири","мячи","утяжелители","аксессуары к зимнему инвентарю","велотренажеры","растения","поддоны и ящики","грунты, торф","прочий садовый инвентарь","саженцы","гамаки","игровые комплексы","железные дороги и треки","горки, песочницы","ванночки ,горшки, аксессуары","бутылочки, поильники","стопры, защелки","аксессуары для мам","автокресла для детей","завтраки","аксессуасары для обуви","каши","каши безмолочные","восточные сладости","бритье","мужские","какао","готовая кулинария","блинчики","бутерброды","blu-ray диски","йогурты","колбасные изделия","напитки алкогольные","аксессуары для одежды","комплекты домашней одежды","верхняя одежда новорожденные","плавки","галстуки","бейсболки, кепки","дубленки, шубы","пряности","для диабетического питания","витамины и добавки","икра","аксессуары к табачным изделиям","пепельницы","замороженные фрукты, овощи, ягоды","длительного хранения","бумажно-целюлозная продукция","удлинители","лампы энергосберегающие","кухонная посуда","чайники, термосы (без блока питания)","салатники","стаканы, рюмки","держатели для ванной","зеленый чай","яйцо куринное","каши","горох крупа","мука блинная","лапша быстрого приготовления","ванилин","патока крахмальная","песок","кусковой","инсектициды","аэрозоль","бальзам для мытья посуды","гель для посудомоечных машин","жидкость для стирки","аэрозоль для мебели","воск","вода для утюга","прочее чистящие средства","мясоовощные","кисломолочные напитки","колбасные изделия (мясо и мясные изделия","нет в списке прочего детского питания","козинак","вафли классические","захаренные фрукты, орехи","шоколад плиточный","бритвенные кассеты","гримы, гуммозы","ватная продукция","гель для загара","уход за кожей лица","гель против загара","какао гранулированный","блины, блинчики","капуста квашеная","йогурты вязкие","ацидофилин","айран","майонез","масло сливочное","пастеризованное","трубочки для молока","со вкусом клубники","мороженое","взбитые сливки","желе, соусы, кремы, пудинги, муссы, паст","паста сырная","творог","десерты, торты творожные","ветчина кобласные изделия","мясо животных","варено-копченные","баранина в маринаде","баранина мороженая","баранина охлажденная","бальзам алкогольный","вода","вода ароматизированная","коктейли","бюстгальтера","гольфы","анис","горчица","белковая продукция","прочие напитки","корм для грызунов","для кошек","ошейники","наполнители для туалетов","заменители икры","в масле","крабовое мясо","безпозвоночные","прочие пресервы рыбные","живая","рыба(кроме сельди)","мозги","масло икорное","замороженные овощи, грибы","консервированные овощи, грибы","орехи","бахчевые","взорванный рис","сушеные овощи, грибы","баранки","классический хлеб","замороженные полуфабрикаты","бумажные полотенца","ведра","листовой зеленый чай","крупнолистовой чай","каши в коробках","колотый горох","белый рис","говяжьи","говяжьи","ванильный","аэрозоль, спрей инсектициды","аэрозоль, спрей  репелленты","отбеливатели","рожки","для замши, нубука","гель","гель","гель","аэрозоль","гель","гель","гель","гомогенизированные","гомогенизированные","гомогенизированные","гомогенизированные","заменитель грудного молока","ветчина","корзиночка","драже","мармелад жевательный","бритвенной станок + кассеты","гель для бритья","воск","бальзам после бритья","мужские","диски","декоративное мыло","для врослых","гигиенические","гель для душа","прочие тампоны","влажная туалетная бумага","гель для зубов","крем для лица","дезодорант для ног","гель для рук","крем для тела","маска для волос","краска для волос","кондиционеры для волос","бальзам для укладки волос","курица","из мяса птиц","спреды прочие","прочие сугущенные продукты","классический","десерты из мороженого","желе","варено-копченые","варено-копченые","заливные","ветчинные","бульон","индейка мор","индейка охл","белое виноградное","белое плодовое","белое","арманьяк","абсент","вина игристые","прочий сироп","кисель","винные","душистый перец","влажный для кошек","влажный для собак","для кошек наполнители","из сайры","натуральные","из сельди","в маринаде","замороженнное","замороженнные","из неразделанной рыбы в различных заливк","из кильки","из кильки","осетрина","камбалообразные","карп","балычные изделия(кроме сельди)","крепкосоленая рыба","горячего копчения","балычный изделия из сельди","пасты из рыбы","мороженный","горох","вишня","горошек","варенье","арбуз","артишоки","баклажаны","абрикосы","алыча","нектарин","брусника","грибы сушеные","багет","булочки","каравай","пакет гриль","бумага подарочная","пакет майка","бумага подарочная","против летающих насекомых","против летающих насекомых","против комаров","против комаров","для тараканов","против комаров","против комаров","против грызунов","против моли","против комаров","против комаров","против клещей","против клещей","аэрозоль","аэрозоль","подвес","гречневые","прочее","напитки сокосодержащие овощные","гель мужской","гель прочий","подгузники для детей","механические","прочие","вареное","с сахаром","рулет","баранья","говяжья","любительские","алтайская","брауншвейгская","говядина тушеная",null,"балык","балык","балык","бедро","микс","аджика","вяленые","грузди","икра баклажанная","маринованные","маринованные","белые","апельсины","авокадо","без конверта","ягоды","ягоды","ростовский","против клещей","гель","ножницы","женские наборы","пеленки для взрослых","брынза","светлый","электроника автомобильная","автоинструмент","аксессуары для внешнего вида","аудио товары автомобильные","минеральные масла","аудио проигрыватели/чейнджеры","видеомониторы автомобильные","аудио-видео оборудование","акустические системы домашние","видеокамеры","антенны","кронштейны и подставки тв","вспышки для камер","аудиовизуальные кабели","крупная бытовая техника","измельчители и уплотнители мусора","красота и здоровье","посудомоечные машины","варочная поверхность","прочая","льдогенераторы","бритвы, триммеры","вентиляторы переносные","гладильные доски (с блоком питания)","вакуумный упаковщик","вок электрический","паровые очистители","аккумуляторы","багаж","аксессуары для макияжа","бумажники, портмоне","бумага, карточки, пленка","бланки","бумажные дыроколы","канцелярские клеи","дневники, органайзеры","измерительное/геометрическое оборудование","обложки","обувь домашняя","полностью закрытая","ботинки защитные","ботинки","общего назначения","калькуляторы","мобильные устройства","аксессуары для мобильные устройств","аксессуары для стационарных устройств","кемпинг","бассейны и аксессуары","аксессуары для барбекю","ароматизаторы","для нового года и рождества","карнавальные аксессуары","инструменты ручные (без источника питания)","гвоздезабиватели, степлеры, заклепочники","абразивы","контейнеры для инструмента","гайковерты","декоративная мебель, свет","вазы","детская колыбель","гардеробные","диванные подушки"]
["бакалея","видеоигры","жесткие диски портативные","изделия из платины","спортивный инвентарь","диски, грифы","настольные игры",null,"коньки ледовые","вибромассажеры","садовая мебель и фурнитура","прочий","средства защиты","ручной садовый инструмент","семена и луковичные","зонты, тенты от солнца","игрушки","игровые наборы","палатки, домики",null,"кружки и чашки для детей",null,"аксессуары для новорожденных","аксессуары для колясок, автокресел","крупа","губка","консервы","каши йогуртовые","изделия мучные кондитерские","вода туалетная","прочие дезодорантыи антиперсперанты","кофе без кофеина","замороженные кулинария","гарниры","гарниры охлажденные","cd диски","кисломолочные продукты","мясные консервы","напитки безалкогольные","верхняя одежда","пижамы, сорочки","наборы для новорожденных","купальники","носовые платки","комплекты","кардиганы","уксус, приправы, горчица","для питания беременных","игрушки для животных","консервы рыбные","папиросы","прочее","консервированные","недлительного хранения","зажигалки, спички","переходники","лампы обычные","сервировочная посуда","терки и разделочные доски","тортницы","вилки","штора для ванной","прочий чай","яйцо перепелок","мюсли","крупа гречневая","мука гречневая","прочая продукция быстрого приготовления","дрожжи","сахар с добавками","рафинад","песок","репелленты","диффузор","гель для мытья посуды","капсулы","кондиционеры для белья","крем для ухода за мебелью","краска","для облегчения глажки","средства для чистки кафеля, сантехники","овощные","молочные напитки","кулинарные изделия","печенье детское","лукумы","вафли мягкие","зефир","шоколадные батончики","бритвенные станки","прочее декоративная косметика","влажные салфетки","крем для загара","уход за кожей ног","крем против загара","какао порошок","вареники","корейские соленья","йогурты питьевые","варенец","кумыс","маргарин","прочее масло, топленые смеси","прочее молоко","прочие","со вкусом ванили","торты, кексы, пирожные и десерты из моро","порционные сливки","продукты сметанные","продукты сырные мягкие","творог зерненый","желе творожное","колбаски","мясорастительные","запеченные","говядина в маринаде","говядина мороженая","говядина охлажденная","вермуты","газированные напитки","вода минеральная","медовуха","корсеты","колготки","бадьян","прочие уксус, приправы, горчица","варенье, мёд","цикорий","корм для других животных","для собак","поводки","туалеты","икра лососевых","из печени трески","крабовые палочки","консервы из морепродуктов","пряного посола","замороженная","сельдь","сердце","пасты и паштеты из рыбы","замороженные фрукты, ягоды","консервированные фрукты, ягоды","семена","зелень","кукурузные палочки","сушеные фрукты, ягоды","бублики","мелкоштучные изделия","охлажденные полуфабрикаты","бумажные салфетки","венники","пакетированный зеленый чай","пакетированный черный чай","каши в сашетах","круглый горох","бурый рис","грибные","грибные","прочий сахар с добавками","гель инсектициды","браслет","пятновыводители","стельки","для кожи,кож. зама","жидкость","порошок","крем","прочее средства для чистки стекол","гранулы","гигиенический блок","жидкость","нарезанные кусочками","нарезанные кусочками","протертые","протертые","каши молочные сухие, смеси","колбаса","круассан","ирис","мармелад желейный","бритвенный станок","пена для бритья","восковые полоски","гель после бритья","прочие дезодорантыи антиперсперанты","палочки","жидкое мыло","для детей","ежедневные","набор для душа","с апликатором","сухая туалетная бумага","зубная нить","лосьон для лица","крем для ног","крем для рук","лосьон для тела","масло для волос","тоник для волос","прочие средства для мытья волос","воск для укладки волос","мясо","мясные","спреды растительно-жировые","сгущенное молоко","крем-брюле","кексы из мороженого","кремы","вареные","вареные","зельцы","консервы кусковые","вторые блюда","куры мор","куры охл","красное виноградное","красное плодовое","красное","бренди","аперитив","шампанское","сироп кленовый","компоты","прочие слабоалкогольные коктейли","красный перец","сухой для кошек","сухой для собак","для собак наполнитель","из сельди","прочие из печени трески","из скумбрии","в масле рыбоовощные","охлажденное","охлажденные крабовые палочки","из разделанной рыбы в различных заливках","из прочей рыбы пряного посола","из прочей рыбы специального посола","прочая живая","лососевые","осетрина","вяленая рыба","слабосоленая рыба","холодного копчения","сельдь горячего и полугорячего копчения","паштеты из рыбы","охлажденный","грибы замороженные","ежевика","грибы консервированные","джем, конфитюр, повидло","дыня","базилик","батат","айва","слива красная","парагвай","голубика","овощи сушенные","батон","калачи","лаваш","пакет майка","бумажный пакет","пакеты для температур","бумажный пакет","против ползающих насекомых","против ползающих насекомых","против мух","против мух","прочее","против мух","против мух","против комаров","прочее","против мух","против мух","против комаров","против комаров","гель отбеливатель","гель пятновыводитель","прочее","кукурузные","ступень 1","напитки сокосодержащие фруктово-овощные","прочее","прочее","трусики","насадки для электрических","с сахаром","обезжиренное с сахаром","с сахаром и какао","торт","деликатесная","диабетическая","охотичьи","армавирская","зернистая","прочее кусковые консервы","карбонад","бекон","бекон","бекон","крыло","овощное пюре","кетчуп","соленые","лисички","икра кабачкова","соленые","соленые","классические","грейпфруты","бананы","в конверте","цукаты","цукаты","московский","против комаров","жидкость","пилки для ногтей","мужские наборы","пеленки для детей","буратта","черный","обслуживание автомобиля","автомобильные тормоза","аксессуары для салона","наборы электроники","полусинтетические масла","колонки","видеопроигрыватели автомобильные","запись и воспроизведение видео","аудио колонки домашние","проигрыватели и записывающие устройства","комплектующие спутник","телевизоры кинескоп","камера одноразовая","кабельные катушки","мелкая бытовая техника","кулеры для воды","небольшие кулеры для воды","прочая моющая техника","духовки","стиральные машины","морозильники","ванночки д/ног электрические","воздухоочистители переносные","паровая гладильная станция","консервные ножи электрические","грили","прочая техничка","батарейки","галантерейные аксессуары","косметички","ключницы","канцелярские ножи, роликовые резаки","бумага","бумажные шредеры","клейкие ленты канцелярские","календари","карандаши","папки канцелярские","обувь спортивная","частично закрытая","галоши защитные","сапоги","специализированная","копировальные аппараты","стационарные устройства","коммун-ры, смартфоны","проводные телефоны","пикник","прочие надувные изделия","дрова, уголь, брикеты","веники для бани","прочие","новогодние деревья","строительные изделия","горелки, паяльные лампы","арматура двери",null,"генераторы","детская мебель","декоративные плакаты, флаги","детские ванночки","диван-кровати","занавески, шторы, жалюзи"]
["бытовая техника","игровые консоли и аксессуары","карты памяти","изделия из золота","фитнес",null,"самокаты, скейты",null,"лыжи, ботинки","прочие тренажеры","садовая мототехника и насосы","резервуары для воды","удобрения, подкормка","товары для полива","цветы","подстилки, сидения садовые","коляски и автокресла","игрушки для малышей",null,null,"прочая посуда",null,"Игровые коврики, подвески","коляски для детей","макаронные изделия","инсектициды, репелленты","молочные продукты","каши молочные","кондитерские сахаристые изделия","дезодоранты и антиперсперанты",null,"кофе в зёрнах","охлажденная кулинария","готовые супы","мясная кулинария охлажденная","dvd диски, видеокассеты","маргарин, спред, майонез и др. пищевые ж","мясные копчености","напитки слабоалкогольные","головные уборы и аксессуары","халаты","прочая одежда для новорожденных",null,"ремни, подтяжки","панамы","комбинезоны",null,"для спортивного питания","когтеточки","крабовое мясо, палочки","сигареты",null,"орехи, семена","полуфабрикаты хлебобулочные","инвентарь для уборки","фонари","лампы прочие","одноразовая посуда","дуршлаги, сита","стопки, рюмки","ножи","сиденья для унитаза","чай ассорти","яйцо прочее","подушечки","крупа кукурузная","мука кукурузная","пюре быстрого приготовления","желатин","сахарная пудра",null,null,"средства после укусов","прочий освежитель","жидкость для мытья посуды","ополаскиватель","пятновыводители, отбеливатели","порошок для ухода за мебелью","крем для обуви","крахмал для одежды","средства для чистки ковров, мягкой мебел","прочие консервы","прочие молочные продукты","паштеты мясные","чай десткое питание","пастила","галеты","конфеты","шоколадные пасты","набор для бритья","пудры и крем-пудры","мыло","лосьон","уход за кожей рук","лосьон","прочее какао","гарниры","морковь по-корейски",null,"катык","мацони","прочие пищевые жиры","шоколадное масло","сгущенные молочные продукты",null,"со вкусом шоколада",null,"сливки питьевые","прочие сметанные продукты","продукты сырные плавленые",null,"крем творожный продукт","колбасы",null,"копчено-запеченные","прочее мясо в маринаде","мясной фарш мор","кролик охлажденный","вина виноградные","квас","вода питьевая","пивные коктейли","майки","носки","ваниль","томатная паста","клетчатка, отруби",null,"корм для кошек","прочие лакомства","прочие поводки",null,"икра осетровых","натуральные",null,"полуфабрикаты и изделия из морепродуктов","специального посола","охлажденная",null,"хвосты","прочие рыбные полуфабрикаты и изделия",null,null,null,"овощи свежие","попкорн",null,"гренки","национальный хлеб","прочие полуфабрикаты хлебобулочные","бумажные скатерти","губки","прочий зеленый чай","прочий черный чай",null,null,"прочий рис","куриные","куриные",null,"жидкость для фумигатора","крем репелленты",null,"сушилки","прочая губка","прочее средства для чистки кафеля, санте","прочее средства для чистки ковров, мягкой мебели","спрей","спрей","жидкость","жидкость","порошок","прочие мясоовощные","протертые","прочие фруктово-овощные","прочие фруктовые","кисломолочные смеси","прочие колбасные изделия","прочие пирожные","карамель","мармелад фруктово-ягодный","одноразовый станок","прочее средства для бритья","крем для дипеляции","крем после бритья",null,"прочая ватная продукция","крем-мыло",null,"прочие прокладки","пена для ванны",null,null,"зубная паста","очищение кожи лица","прочее уход за кожей ног","прочее уход за кожей рук","молочко для тела","прочее лечение волос","хна","шампуни","гель для укладки волос","овощи гриль","овощные замороженные","спреды растительно-сливочные","сгущенные сливки","прочие стаканчик","пирожные из мороженого","мусс","полукопченые колбаски","кровяные","паштеты","паштетные","первые блюда","прочая птица мор","прочая птица охл","розовое виноградное","розовое плодовое","розовое","граппа","прочие ликёро-водочные",null,null,"концентрированный сок",null,"смесь перцев",null,null,null,"из тунца",null,"лососевые","в различных соусах и бульоне",null,null,null,"из сельди","из сельди","сом","осетровые","прочая охлажденная","копченая рыба","среднесоленая рыба",null,"сельдь крепкосоленая",null,null,"капуста цветная","клубника, земляника","кабачки и патиссоны","мармелад консервированный",null,"зеленый лук","брюква","виноград","терн","персики","земляника",null,"подовый","коржи","лепешка","пакеты для температур","пластиковый пакет","рукав для запекания","пластиковый пакет","прочее","прочее","прочее","прочее","универсальные","прочее","прочее","против моли",null,"прочее","прочее","прочее","прочее","жидкость","жидкость","римблок","многозерновые","ступень 2","напитки сокосодержащие фруктовые","ролик","ролик",null,"электрические","с сахаром вареные","прочее","с сахаром и кофе",null,"любительская","докторская","прочие","баранья","любительская","свинина тушенная","прочее","буженина","буженина","буженина","окорочок","фруктовое пюре","прочие","холодного копчения","маслята","лечо",null,null,"очищенные","лайм","гранат",null,"фрукты","фрукты","финский","прочее","прочие чистящие средства для мебели","пинцет","прочие наборы","пеленки одноразовые прочие","кобийский",null,"химия, косметика, аксессуары","аккумулятор автомобильный","буксировка автомобилей","прочая","синтетические масла","прочие","детекторы радаров автомобильные","прием и установка видео","аудио наушники","прочее оборудование","приставки к телевизору","телевизоры плазма","камеры аналоговые","прочие провода и кабели",null,"кухонная моющая техника","портативная климатическая техника",null,"кухоная вытяжка","сушки для белья","охладители вина","весы напольные","ионизаторы воздуха","прочая техника","кофеварки","комплекты для приготовления блюд","пылесосы","зарядные устройства","зонты","наборы для макияжа","сумки","ленты, переплетчики, скрепление документов","прочие","канцелярские  ножницы","принадлежности для брошюраторов","планшеты, телефонные книги","настольные коврики","подставки для канцтоваров","обувь защитная",null,"сапоги защитные","туфли женские",null,"мфу",null,"мобильные телефоны","прочее","товары для бани","товары для кемпинга прочие","прочие","головные уборы для бани",null,"новогодние украшения","хранение инструментов","инструменты для труб","герметики и прочие",null,"дрели ударные","мебель для дома, офиса","зеркала","детские горшки","канцелярские шкафы","защита матрасов, подущек, одеял"]
["бытовая химия","комплектующие для компьютера","usb-накопители","бижутерия","зимний инвентарь",null,"теннисные принадлежности",null,"санки, ледянки","скамьи, бенчи","садовый декор","кашпо,горшки и держатели",null,null,null,"прочая садовая мебель","купание и уход","игрушки для песочницы",null,null,"столовые приборы для детей",null,"наборы для новорожденных",null,"мед","освежители воздуха","мясо и мясные изделия","прочие каши",null,"декоративная косметика",null,"кофе в капсулах",null,"гриль","пицца охлажденная","атласы и карты","масло, топленые смеси","мясо в маринаде",null,"комплекты одежды",null,null,null,null,"парео","кофты",null,"продукция диетическая прочая","корма","морепродукты","сигариллы",null,"свежие","прочий хлеб и хлебобулочные изделия","фольга, бумага, пакеты","доски гладильные",null,null,"крышки","фужеры, бокалы","комплекты","экраны для ванной","черный чай",null,"фигурные изделия","крупа перловая","мука прочая","супы и бульоны в жидком виде","кислота лимонная","сахарозаменители",null,null,null,"саше","прочие средства для мытья посуды","освежитель для посудомоечных машин","смягчители воды","спрей для ухода за мебелью","освежитель","ролик для одежды","средства для чистки мебели","рыбные и рыбноовощные","сухие молоко и молочные смеси","полуфабрикаты",null,"пахлава","кексы, куличи","мармелад","шоколадные фигуры","средства для бритья","румяна, маскирующие карандаши для лица","одноразовые пеленки","молочко для загара","уход за кожей тела","молочко против загара",null,"голубцы","прочие соленья",null,"кефир","тан","спреды",null,"стерилизованное молоко",null,"со вкусом банана",null,"сливки прочие","сметана","продукты сырные полутвердые",null,"масса творожная","купаты",null,"прочие мясные копчености","птица в маринаде","прочее мясо мороженое","мясной фарш охлажденный","вина плодовые","сироп","вода прочая","пивные напитки","наборы нижнего белья","чулки","гвоздика","уксус","кондитерские изделия диабетические",null,"корм для кроликов",null,"шлейки",null,"икра прочих рыб","рыбоовощные",null,"пресервы из морепродуктов",null,null,null,"почки","рыбный фарш",null,null,null,"прочее свежие","прочие снэки",null,"прочие длительного хранения",null,null,null,"контейнеры для мусора",null,null,null,null,"смешанный рис","овощные жидкие","овощные сухие",null,"лента","молочко репелленты",null,"шнурки",null,"спрей","спрей",null,null,"порошок","крем","прочее универсальные чистящие средства",null,"прочие овощные",null,null,"молочные напитки сухие, смеси","сардельки (мясо и мясные изделия)","трубочка","конфеты суфле",null,null,"крем для бритья","прочее средства для депиляции","лосьон после бритья",null,null,"прочее мыло",null,"урологические","прочие средства для душа",null,null,"зубные щетки","прочее уход за кожей лица","скраб для ног",null,"прочее уход за кожей тела","сыворотка для волос",null,null,"лак(спрей) для волос",null,"рыбные","спреды сливочно-растительные",null,"шоколад","торты из мороженого","пасты","прочие колбаски","ливерные","прочие колбасные изделия","прочее мясо животных","прочие мясорастительные",null,null,null,null,null,"коньяк","пунши",null,null,"морсы",null,"черный перец",null,null,null,"прочие в масле",null,"прочие натуральные","в томатном соусе",null,null,null,"из скумбрии","из скумбрии","форель","прочая замороженная","сом","соленая рыба",null,null,"сельдь пряного посола и маринованная",null,null,"картофель","клюква","кукуруза","прочие консервированные фрукты, ягоды",null,"зелень прочее","грибы свежие","вишня","чернослив",null,"клубника",null,"формовой","мини багет","пита","фасовочный пакет",null,"фасовочный пакет",null,"универсальное","универсальное","универсальное",null,null,null,"универсальное","против мух",null,null,"универсальное против летащющих","универсальное","универсальное","крем","крем","таблетка","овсяные","ступень 3",null,"спрей","спрей",null,null,null,"с сахаром и какао","с сахаром и цикорием",null,"московская","закусочная",null,"венгерская","майкопская",null,"хамон","карбонад","карбонад","карбонад","прочее","ягодное пюре","ткемали",null,"опята","овощные смеси",null,null,null,"лимон","инжир",null,"орехи","орехи","прочий","универсальное","спрей","прочее",null,null,"моцарелла",null,null,"дворники","влажные салфетки","видео/навигация автомобильные",null,"сабвуферы","навигационное оборудование","прочие","док-станции для устройств",null,"прочие","телевизоры прочие","камеры цифровые","спутниковые монтажные кабели",null,"основная кухонная техника","предметы ухода за бельём",null,"кухонные плиты и печи",null,"прочие","зеркала электрические","кондиционеры переносные","утюги для одежды (с блоком питания)","кофемолки электрические","минидуховки","сменные мешки для пылесосов","прочие","кожгалантерея","наручные часы",null,"планировщики","тетради","прочие","прочие","стикеры, бумаги для заметок","прочие","прочие","обувь общего назначения",null,null,"туфли мужские",null,"принтеры",null,"прочее","радио-телефоны",null,"товары для рыбалки, охоты","средства для розжига","мочалки для бани",null,"пиротехника","электроинструмент","ключи","двери",null,"дрели-шуруповерты","текстиль, прочие материалы","интерьерные часы","детские кроватки","коробки, корзины","ковры, дверные коврики"]
["детское питание","компьютеры",null,null,"тренажеры",null,null,null,"сноуборды",null,"садовый инвентарь",null,null,null,null,"скамьи садовые","посуда для новорожденных","каталки для детей",null,null,"тарелки и блюда для детей",null,"погремушки",null,"мука","средства для мытья посуды","прочее десткое питание",null,null,"духи",null,"кофе в чалдах",null,"котлеты готовые","прочие охлажденные","газеты","молоко","мясо мороженое",null,"купальные костюмы",null,null,null,null,"перчатки, варежки","куртки, ветровки",null,"продукция энтерального питания","лакомства","пресервы рыбные","сигары",null,"снэки",null,"бытовые принадлежности","корзины для белья",null,null,"ножи кухонные","кофейник","тарелки","ершики для унитаза",null,null,"хлопья","крупа ячменная","мука пшеничная","сухие супы и бульоны","крахмал пищевой","свеколичный сахар",null,null,null,"свеча",null,"очиститель накипи","стиральный порошок",null,"очиститель","щетка для одежды","средства для чистки плит и духовок","фруктово-овощные","творог и твороженные продукты","прочие мясо и мясные изделия",null,"прочие восточные сладости","крекеры","резинка жевательная",null,"средства для депиляции","средства для макияжа глаз","одноразовые платки","прочие средства для загара",null,"прочие средства против загара",null,"котлеты замороженные",null,null,"кисломолочные коктейли",null,null,null,"топленое",null,"прочие",null,null,null,"продукты сырные прочие",null,"мусс творожный","мясной хлеб",null,"сало","свинина в маринаде","птица мороженая","прочее мясо охлажденное","винные напитки","соковая продукция",null,"пиво","подвязки, ремешки для чулок",null,"имбирь",null,"консервы диабетические",null,"корм для птиц",null,null,null,null,null,null,"ракообразные",null,null,null,"уши",null,null,null,null,"фрукты свежие","чипсы",null,"соломка",null,null,null,"мешки для мусора",null,null,null,null,"черный рис","прочие супы и бульоны в жидком виде","прочие сухие супы и бульоны",null,"ловушки","прочие репелленты",null,"щетки",null,null,null,null,null,"прочее средства для чистки труб","прочее средства для чистки унитаза","спрей",null,null,null,null,"молочные смеси","сосиски (мясо и мясные изделия)","эклеры","конфеты шоколадные",null,null,null,null,"прочее средства после бритья",null,null,"твердое мыло",null,null,"скрабы",null,null,"зубочистки","скраб для лица",null,null,null,null,null,null,"пена (мусс) для волос",null,null,null,null,"ягодная",null,"пудинги","сыровяленые","полукопченые колбасы","студни","рубленные",null,null,null,null,null,null,"прочие коньяки, бренди, коньячные напитки","саке",null,null,"напитки сокосодержащие",null,null,null,null,null,"сардины",null,null,"прочие рыбоовощные",null,null,null,null,null,null,"сельдь замороженная","треска","сушеная рыба",null,null,"сельдь слабосоленая",null,null,"кукуруза","малина","маслины",null,null,"кресс-салат","кабачки","груши",null,null,"клюква",null,null,"прочие мелкоштучные изделия","прочий",null,null,"пакет для льда",null,null,null,null,null,null,null,null,"против тараканов",null,null,null,null,null,"порошок","порошок",null,"прочее",null,null,"твердый","твердый",null,null,null,"с сахаром и кофе","стерилизованное",null,"мускатная","краснодарская",null,"ветчинная","московская",null,null,"корейка","корейка","корейка","субпродукты индейка охлажденная",null,null,null,"прочие","прочее",null,null,null,"мандарины","киви",null,"прочие","прочие",null,null,null,null,null,null,"осетинский рассольный",null,null,"диски колесные","жидкости для мытья",null,null,"стереосистемы","навигационное по","телевизоры","караоке-системы домашние",null,"спутниковые системы и наборы","телевизоры хж","линзы сменные","телекоммуникационные кабели",null,"основная прачечная техника","прочая мелкая бытовая техника",null,"микроволновые печи",null,"холодильники и морозильники","зуб.щетки,центры эл.","прочая техника",null,"кухонная техника для  взбивания продуктов","посуда для паровой варки",null,null,"одежная фурнитура","очки",null,"средства для письма, коррекции","этикетки, купоны, билеты","резаки для бумаги","степлеры",null,"ручки","файлы для документов","обувь спортивная",null,null,null,null,"прочее",null,"радиоустановки приемопередаточные",null,null,null,"устройства для барбекю","прочие",null,"электрогирлянды",null,"молотки, топоры, наковальни","замки, фурнитура",null,"заточные станки",null,"искусственные цветы, растения, деревья","кресло для кормления ребёнка","кресла-мешки, пуфы, турки","кухонные комплекты"]
["яйцо","носители информации портативные",null,null,"велосипеды",null,null,null,null,null,"уход за садом",null,null,null,null,"скамьи-качалки садовые","предметы для безопасности ребенка","конструкторы",null,null,null,null,"пустышки, соски",null,"мучные смеси","средства для посудомоечных машин","соки, нектары, напитки",null,null,"жидкость для снятия лака",null,"кофе молотый",null,"оладьи","тесто охлажденное","журналы","молочные коктейли","мясо охлажденное",null,"нижнее белье",null,null,null,null,"платки, банданы","наборы верхней одежды",null,null,"лежаки, домики","рыба охлажденная, живая, замороженная","табак",null,"соленья",null,"лампы накаливания","сушилки для одежды",null,null,"сковороды, сотейники","заварной чайник","прочие","штанги для ванной",null,null,null,"крупа ячневая","мука ржаная",null,"молоко сухое","тростниковый сахар",null,null,null,"сменный балон",null,"порошок для посудомоечных машин","таблетки, капсулы для стирки",null,"прочие  средства по уходу за обувью",null,"средства для чистки стекол","фруктовые консервы",null,null,null,"халва","печенье","шоколадные изделия",null,"средства после бритья","средства для макияжа губ","подгузники","спрей для загара",null,"спрей против загара",null,"наггетсы",null,null,"национальные продукты",null,null,null,"ультрапастеризованное",null,null,null,null,null,"продукты сырные рассольные",null,"паста","прочие колбасные изделия",null,"сырокопченное",null,"свинина мороженая","птица охлажденная","виски","холодные чаи",null,"пиво безалкогольное","термобелье",null,"кардамон",null,"напитки диабетические",null,"корм для рыбок",null,null,null,null,null,null,null,null,null,null,"прочие",null,null,null,null,"ягоды свежие",null,null,"сухари",null,null,null,"мусорные ведра, баки",null,null,null,null,null,"рыбные","рыбные",null,"пластины",null,null,null,null,null,null,null,null,null,"спрей",null,null,null,null,null,"прочие сухие молоко и молочные смеси",null,null,"наборы конфет",null,null,null,null,null,null,null,null,null,null,"соль для ванны",null,null,"ополаскиватель для рта",null,null,null,null,null,null,null,"прочие средства для укладки волос",null,null,null,null,null,null,"сметанный торт","сырокопченые колбаски","прочие колбасы","холодцы","фаршевые",null,null,null,null,null,null,null,"текила",null,null,"пюре",null,null,null,null,null,"шпроты",null,null,"с гарнирами",null,null,null,null,null,null,"скумбрия","форель",null,null,null,"сельдь среднесоленая",null,null,"оливки,маслины","облепиха","овощное ассорти",null,null,"набор зелени","капуста","персики",null,null,"крыжовник",null,null,"рогалик","чиабатта",null,null,null,null,null,null,null,null,null,null,null,"прочее",null,null,null,null,null,"спрей","спрей",null,"пшеничные каши",null,null,null,null,null,null,null,"с сахаром и цикорием",null,null,"прочая","любительская свиная",null,"говяжья","невская",null,null,"окорок","окорок","окорок","тушка",null,null,null,"шампиньоны",null,null,null,null,"памело","кокос",null,null,null,null,null,null,null,null,null,"прочий сыр рассольный",null,null,"незамерзающие жидкости, омыватели","лебедки",null,null,"усилители","прочие","фотография и оптика","кинотеатры домашние",null,null,null,"принадлежности для вспышки",null,null,"подогревающая техника","техника для приготовления еды/напитков",null,"нагревательные элементы",null,null,"маникюрн/педикюр электроприборы","увлажнители воздуха",null,"кухонная техника для смешивания продуктов","прочая техника",null,null,"принадлежности для шитья и рукоделия","предметы для волос",null,"хранение документов, книг, прочего",null,"роликовые резаки","удаление скоб",null,"средства для коррекции документов",null,null,null,null,null,null,"расх. материалы для фотокопировальных устройств",null,"связные радиостанции",null,null,null,null,null,null,null,null,"ножи","изоляционный материал",null,"инструменты для покраски",null,"картины","матрац для детской кроватки","кровати","наволочки"]
["изделия ювелирные, бижутерия","периферийные устройства",null,null,"водный спорт",null,null,null,null,null,null,null,null,null,null,"столы садовые","товары для новорожденных и мам","куклы и аксессуары к ним",null,null,null,null,null,null,"пищевые ингредиенты","средства для стирки",null,null,null,"лечение волос",null,"кофе растворимый",null,"прочие готовые",null,"книги","мороженое и десерты замороженные прочие",null,null,"одежда для новорожденных",null,null,null,null,"шапки, береты","пальто",null,null,"миски","рыба сушеная, вяленая, копченая, соленая","электронные сигареты",null,"сушеные",null,"посуда",null,null,null,"противени для запекания","кружки",null,"аксессуары для ванной",null,null,null,"кускус",null,null,"прочие пищевые добавки","фруктоза",null,null,null,"сменный блок",null,"прочие средства для посудомоечных машин","хозяйственное мыло",null,"растяжитель",null,"средства для чистки труб",null,null,null,null,"чак чак","пироги",null,null,null,"средства для маникюра или педикюра","презервативы",null,null,null,null,"пельмени",null,null,"простокваша",null,null,null,null,null,null,null,null,null,"продукты сырные сверхтвердые",null,"пасха","сардельки",null,"шпик",null,"телятина мороженая","свинина охлажденная","водка","энергетические напитки",null,"пиво нефильтрованное","трусы",null,"карри",null,"соусы диабетические",null,"корм для собак",null,null,null,null,null,null,null,null,null,null,null,null,null,null,null,null,null,null,"сушки",null,null,null,"перчатки",null,null,null,null,null,null,null,null,"пластины для фумигатора",null,null,null,null,null,null,null,null,null,"стикер",null,null,null,null,null,null,null,null,"нуга",null,null,null,null,null,null,null,null,null,null,null,null,null,null,null,null,null,null,null,null,null,null,null,null,null,null,null,null,"соусы прочие",null,"сыровяленые",null,null,null,null,null,null,null,null,null,null,null,null,"соки, нектары",null,null,null,null,null,null,null,null,null,null,null,null,null,null,null,"судак замороженный","щука охлажденная",null,null,null,"сельдь холодного копчения",null,null,"перец замороженный","прочие фрукты, ягоды","огурцы консервированные",null,null,"петрушка","картофель","прочее",null,null,"малина",null,null,"сдобы",null,null,null,null,null,null,null,null,null,null,null,null,null,null,null,null,null,null,null,null,null,"рисовые",null,null,null,null,null,null,null,"стерилизованное",null,null,"русская","молочная",null,"городская","особенная",null,null,"прочее","прочее","прочее","филе",null,null,null,null,null,null,null,null,"прочие","манго",null,null,null,null,null,null,null,null,null,"сулугуни",null,null,"прочие","приспособления для мытья",null,null,null,"gps кронштейны и подставки","электрические провода и кабели","микрофоны",null,null,null,"прочие",null,null,"прочая крупная бытовая техника","устройства для готовки нагревающие",null,"паровые духовки",null,null,"массажеры электронные",null,null,"кухонные весы электрические","скороварки",null,null,null,"прочие галант. акс.",null,null,null,null,null,null,"стержни, грифели",null,null,null,null,null,null,"сканеры",null,"sim-карты",null,null,null,null,null,null,null,null,"отвертки","краски, лаки",null,"компрессоры портативные",null,"люстры, светильники","пеленальный стол","матрасы","одеяла"]
["кондитерские изделия","программное обеспечение",null,null,"мототехника",null,null,null,null,null,null,null,null,null,null,"тенты, навесы","школьная галантерея","машины, мотоциклы аккумуляторные",null,null,null,null,null,null,"продукты быстрого приготовления","средства по уходу за мебелью",null,null,null,"одеколоны",null,"кофейный напиток",null,"салаты",null,"открытки, календари","сливки",null,null,"одежда для сна и отдыха",null,null,null,null,"шарфы, палантины","плащи, дождевики",null,null,"переноски","рыбные полуфабрикаты, рыбные изделия",null,null,null,null,"товары для ванной, туалета",null,null,null,"фильтры, кувшины","чашки",null,null,null,null,null,"манная крупа",null,null,"разрыхлитель",null,null,null,null,"спрей",null,"соль для посудомоечных машин",null,null,null,null,"средства для чистки унитаза",null,null,null,null,null,"пирожные",null,null,null,"тальк и прочие присыпки для детей","прокладки",null,null,null,null,"пицца замороженная",null,null,"прочие кисломолочные продукты",null,null,null,null,null,null,null,null,null,"продукты сырные твердые",null,"продукты творожные прочие","сосиски",null,null,null,null,"телятина охлажденная","джин",null,null,"пиво специальное","цельное нижнее белье",null,"кориандр",null,"сухие завтраки",null,null,null,null,null,null,null,null,null,null,null,null,null,null,null,null,null,null,null,null,"хлебные палочки",null,null,null,"сгоны",null,null,null,null,null,null,null,null,"прочие инсектициды",null,null,null,null,null,null,null,null,null,null,null,null,null,null,null,null,null,null,"прочие конфеты",null,null,null,null,null,null,null,null,null,null,null,null,null,null,null,null,null,null,null,null,null,null,null,null,null,null,null,null,"суфле",null,"сырокопченые",null,null,null,null,null,null,null,null,null,null,null,null,"узвары",null,null,null,null,null,null,null,null,null,null,null,null,null,null,null,"хек",null,null,null,null,null,null,null,"прочие бобовые","смородина","оливки",null,null,"салат-латук","кукуруза","сливы",null,null,"прочие ягоды",null,null,"слойки",null,null,null,null,null,null,null,null,null,null,null,null,null,null,null,null,null,null,null,null,null,null,null,null,null,null,null,null,null,"цельное с сахаром",null,null,"сервелат","московская",null,"дачная","свиная",null,null,"ребра","ребра","ребра",null,null,null,null,null,null,null,null,null,null,"мушмула",null,null,null,null,null,null,null,null,null,"чанах",null,null,"масла","прочее",null,null,null,null,null,"наборы оборудования",null,null,null,"фотография/оптика – наборы",null,null,"холодильная и замораживающая техника","часы стационарные, будильники",null,"прочие",null,null,"машинки для стрижки",null,null,"кухонный комбайн","тостеры",null,null,null,null,null,null,null,null,null,null,"точилки для карандашей",null,null,null,null,null,null,"факсы",null,null,null,null,null,null,null,null,null,null,"пассатижи, пинцеты","кровельные желоба, дренаж",null,"лазерные уровни",null,"подсвечники","прочие","надувные, водяные кровати матрасы","пододеяльники"]
["косметика","сетевое оборудование",null,null,null,null,null,null,null,null,null,null,null,null,null,"фигурные элементы декора",null,"машины, транспорт, наборы",null,null,null,null,null,null,"растительные масла","средства по уходу за обувью",null,null,null,"окраска волос",null,null,null,null,null,"прочие медиа товары","сметана и сметанный продукт",null,null,"повседневная одежда",null,null,null,null,"шляпы","поло, футболки",null,null,"поводки",null,null,null,null,null,null,null,null,null,"кастрюли","наборы для специй",null,null,null,null,null,"нут",null,null,"сливки сухие",null,null,null,null,"стикер",null,"таблетки для посудомоечных машин",null,null,null,null,"универсальные чистящие средства",null,null,null,null,null,"пряники",null,null,null,null,"средства для душа",null,null,null,null,"прочие замороженные",null,null,"ряженка",null,null,null,null,null,null,null,null,null,"соус сырный",null,"соус","шпикачки",null,null,null,null,null,"кальвадос",null,null,"сидр","юбки под одежду, нижние юбки",null,"корица",null,"сухие смеси",null,null,null,null,null,null,null,null,null,null,null,null,null,null,null,null,null,null,null,null,"хлебцы",null,null,null,"скребки",null,null,null,null,null,null,null,null,"секции",null,null,null,null,null,null,null,null,null,null,null,null,null,null,null,null,null,null,null,null,null,null,null,null,null,null,null,null,null,null,null,null,null,null,null,null,null,null,null,null,null,null,null,null,null,null,null,null,null,null,null,null,null,null,null,null,null,null,null,null,null,null,null,null,null,null,null,null,null,null,null,null,null,null,null,null,null,null,null,null,null,null,null,null,null,null,"прочие овощи, грибы","фруктовая смесь","помидоры консервированные",null,null,"спаржа","лук репчатый","цитрусовые",null,null,"смородина",null,null,null,null,null,null,null,null,null,null,null,null,null,null,null,null,null,null,null,null,null,null,null,null,null,null,null,null,null,null,null,null,null,null,null,"сервелат губернский","обыкновенная",null,"закусочная","сервелат",null,null,"шейка","шейка","шейка",null,null,null,null,null,null,null,null,null,null,"прочие",null,null,null,null,null,null,null,null,null,null,null,null,"свет, лампы","украшения, ароматизация",null,null,null,null,null,"плейеры переносные",null,null,null,"фоторамки цифровые",null,null,null,"чистящая и моющая техника",null,null,null,null,"прочие",null,null,"ломтерезки","фондю (с блоком питания)",null,null,null,null,null,null,null,null,null,null,"чернила",null,null,null,null,null,null,"шредеры",null,null,null,null,null,null,null,null,null,null,"пилы","кровельный материал",null,"лобзики",null,"прочие",null,"парты, рабочие станции","подушки"]
["кофе","устройства ввода",null,null,null,null,null,null,null,null,null,null,null,null,null,"шатры",null,"модели для сборки",null,null,null,null,null,null,"сахар и сахарозаменители","средства по уходу за одеждой",null,null,null,"прочие подарочные наборы",null,null,null,null,null,null,"сыр копченый",null,null,"чулочно-носочные изделия",null,null,null,null,null,"свитеры, пуловеры",null,null,"прочая продукция для животных",null,null,null,null,null,null,null,null,null,"кухонные аксессуары (без блока питания)","столовые приборы, наборы",null,null,null,null,null,"прочая крупа",null,null,"сода",null,null,null,null,"таблетка",null,null,null,null,null,null,null,null,null,null,null,null,"рулеты",null,null,null,null,"тампоны",null,null,null,null,"супы замороженные",null,null,"снежок",null,null,null,null,null,null,null,null,null,null,null,"суфле творожное",null,null,null,null,null,null,"коньяки, бренди, коньячные напитки",null,null,null,null,null,"лавровый лист",null,"чай диабетическое питание",null,null,null,null,null,null,null,null,null,null,null,null,null,null,null,null,null,null,null,null,null,null,null,null,"совки",null,null,null,null,null,null,null,null,"спираль",null,null,null,null,null,null,null,null,null,null,null,null,null,null,null,null,null,null,null,null,null,null,null,null,null,null,null,null,null,null,null,null,null,null,null,null,null,null,null,null,null,null,null,null,null,null,null,null,null,null,null,null,null,null,null,null,null,null,null,null,null,null,null,null,null,null,null,null,null,null,null,null,null,null,null,null,null,null,null,null,null,null,null,null,null,null,"смеси овощные","черешня","прочие овощи",null,null,"укроп свежий","маниок","черешня",null,null,"черника",null,null,null,null,null,null,null,null,null,null,null,null,null,null,null,null,null,null,null,null,null,null,null,null,null,null,null,null,null,null,null,null,null,null,null,"славянская","отдельная",null,"застольная","советская",null,null,null,null,null,null,null,null,null,null,null,null,null,null,null,"фейхоа",null,null,null,null,null,null,null,null,null,null,null,null,"свечи зажигания, накаливания",null,null,null,null,null,null,"проигрыватели дисков",null,null,null,null,null,null,null,"элементы питания и зарадные устройства",null,null,null,null,"тонометры,термометры",null,null,"мясорубки и измельчители","фритюрницы",null,null,null,null,null,null,null,null,null,null,null,null,null,null,null,null,null,null,null,null,null,null,null,null,null,null,null,null,"пневматические инструменты","лепные украшения, столярные изделия",null,"оборудование для дуговой сварки",null,"рамки для картин",null,"прочие","покрывала, пледы"]
["аудио/видео, фотоаппараты",null,null,null,null,null,null,null,null,null,null,null,null,null,null,"шезлонги садовые",null,"музыкальные инструменты",null,null,null,null,null,null,"соевые соусы","чистящие средства",null,null,null,"средства гигиены",null,null,null,null,null,null,"сыр мягкий",null,null,null,null,null,null,null,null,"толстовки",null,null,"туалеты, наполнители для туалетов",null,null,null,null,null,null,null,null,null,null,null,null,null,null,null,null,"пшено",null,null,"яичный порошок",null,null,null,null,null,null,null,null,null,null,null,null,null,null,null,null,null,"торты",null,null,null,null,"туалетная бумага",null,null,null,null,"сырники",null,null,"сыворотка питьевая",null,null,null,null,null,null,null,null,null,null,null,"сырки творожные",null,null,null,null,null,null,"ликёро-водочные",null,null,null,null,null,"мацис",null,null,null,null,null,null,null,null,null,null,null,null,null,null,null,null,null,null,null,null,null,null,null,null,null,null,"стекломои",null,null,null,null,null,null,null,null,"фумигатор",null,null,null,null,null,null,null,null,null,null,null,null,null,null,null,null,null,null,null,null,null,null,null,null,null,null,null,null,null,null,null,null,null,null,null,null,null,null,null,null,null,null,null,null,null,null,null,null,null,null,null,null,null,null,null,null,null,null,null,null,null,null,null,null,null,null,null,null,null,null,null,null,null,null,null,null,null,null,null,null,null,null,null,null,null,null,"спаржа","черника","фасоль",null,null,"шпинат","морковь","экзотика",null,null,null,null,null,null,null,null,null,null,null,null,null,null,null,null,null,null,null,null,null,null,null,null,null,null,null,null,null,null,null,null,null,null,null,null,null,null,null,null,null,null,null,null,null,null,null,null,null,null,null,null,null,null,null,null,null,null,"финики"]
["галантерея",null,null,null,null,null,null,null,null,null,null,null,null,null,null,null,null,"мягкие игрушки",null,null,null,null,null,null,"соль",null,null,null,null,"средства для загара",null,null,null,null,null,null,"сыр плавленый",null,null,null,null,null,null,null,null,null,null,null,null,null,null,null,null,null,null,null,null,null,null,null,null,null,null,null,null,"рис",null,null,null,null,null,null,null,null,null,null,null,null,null,null,null,null,null,null,null,null,null,null,null,null,null,"уход за зубами и полостью рта",null,null,null,null,"тесто замороженное",null,null,null,null,null,null,null,null,null,null,null,null,null,null,null,null,null,null,null,null,null,"ликеры",null,null,null,null,null,"орех мускатный",null,null,null,null,null,null,null,null,null,null,null,null,null,null,null,null,null,null,null,null,null,null,null,null,null,null,"тазы",null,null,null,null,null,null,null,null,null,null,null,null,null,null,null,null,null,null,null,null,null,null,null,null,null,null,null,null,null,null,null,null,null,null,null,null,null,null,null,null,null,null,null,null,null,null,null,null,null,null,null,null,null,null,null,null,null,null,null,null,null,null,null,null,null,null,null,null,null,null,null,null,null,null,null,null,null,null,null,null,null,null,null,null,null,null,null,null,null,null,null,null,null,null,null,"томаты",null,null,null,null,null,"наборы овощные","яблоки",null,null,null,null,null,null,null,null,null,null,null,null,null,null,null,null,null,null,null,null,null,null,null,null,null,null,null,null,null,null,null,null,null,null,null,null,null,null,null,null,null,null,null,null,null,null,null,null,null,null,null,null,null,null,null,null,null,null,"хурма"]
["детские товары",null,null,null,null,null,null,null,null,null,null,null,null,null,null,null,null,"надувные игрушки",null,null,null,null,null,null,"соусы",null,null,null,null,"средства для мытья волос",null,null,null,null,null,null,"сыр полутвердый",null,null,null,null,null,null,null,null,null,null,null,null,null,null,null,null,null,null,null,null,null,null,null,null,null,null,null,null,"фасоль крупа",null,null,null,null,null,null,null,null,null,null,null,null,null,null,null,null,null,null,null,null,null,null,null,null,null,null,null,null,null,null,null,null,null,null,null,null,null,null,null,null,null,null,null,null,null,null,null,null,null,null,null,null,"наливки и сладкие настойки",null,null,null,null,null,"перец",null,null,null,null,null,null,null,null,null,null,null,null,null,null,null,null,null,null,null,null,null,null,null,null,null,null,"тряпки",null,null,null,null,null,null,null,null,null,null,null,null,null,null,null,null,null,null,null,null,null,null,null,null,null,null,null,null,null,null,null,null,null,null,null,null,null,null,null,null,null,null,null,null,null,null,null,null,null,null,null,null,null,null,null,null,null,null,null,null,null,null,null,null,null,null,null,null,null,null,null,null,null,null,null,null,null,null,null,null,null,null,null,null,null,null,null,null,null,null,null,null,null,null,null,"фасоль",null,null,null,null,null,"огурцы свежие"]
["канцтовары",null,null,null,null,null,null,null,null,null,null,null,null,null,null,null,null,"настольные игры и пазлы",null,null,null,null,null,null,"сухари панировочные",null,null,null,null,"средства для укладки волос",null,null,null,null,null,null,"сыр рассольный",null,null,null,null,null,null,null,null,null,null,null,null,null,null,null,null,null,null,null,null,null,null,null,null,null,null,null,null,"чечевица",null,null,null,null,null,null,null,null,null,null,null,null,null,null,null,null,null,null,null,null,null,null,null,null,null,null,null,null,null,null,null,null,null,null,null,null,null,null,null,null,null,null,null,null,null,null,null,null,null,null,null,null,"настойки горькие",null,null,null,null,null,"прочие пряности",null,null,null,null,null,null,null,null,null,null,null,null,null,null,null,null,null,null,null,null,null,null,null,null,null,null,"швабры и насадки",null,null,null,null,null,null,null,null,null,null,null,null,null,null,null,null,null,null,null,null,null,null,null,null,null,null,null,null,null,null,null,null,null,null,null,null,null,null,null,null,null,null,null,null,null,null,null,null,null,null,null,null,null,null,null,null,null,null,null,null,null,null,null,null,null,null,null,null,null,null,null,null,null,null,null,null,null,null,null,null,null,null,null,null,null,null,null,null,null,null,null,null,null,null,null,"шпинат",null,null,null,null,null,"патиссон"]
["компьютерная техника",null,null,null,null,null,null,null,null,null,null,null,null,null,null,null,null,"оружие и аксессуары к нему",null,null,null,null,null,null,null,null,null,null,null,"средства для ухода за кожей",null,null,null,null,null,null,"сыр с плесенью",null,null,null,null,null,null,null,null,null,null,null,null,null,null,null,null,null,null,null,null,null,null,null,null,null,null,null,null,null,null,null,null,null,null,null,null,null,null,null,null,null,null,null,null,null,null,null,null,null,null,null,null,null,null,null,null,null,null,null,null,null,null,null,null,null,null,null,null,null,null,null,null,null,null,null,null,null,null,null,null,null,"портвейны",null,null,null,null,null,"смесь пряностей",null,null,null,null,null,null,null,null,null,null,null,null,null,null,null,null,null,null,null,null,null,null,null,null,null,null,"щетки для пола",null,null,null,null,null,null,null,null,null,null,null,null,null,null,null,null,null,null,null,null,null,null,null,null,null,null,null,null,null,null,null,null,null,null,null,null,null,null,null,null,null,null,null,null,null,null,null,null,null,null,null,null,null,null,null,null,null,null,null,null,null,null,null,null,null,null,null,null,null,null,null,null,null,null,null,null,null,null,null,null,null,null,null,null,null,null,null,null,null,null,null,null,null,null,null,null,null,null,null,null,null,"перец свежий"]
["кулинария",null,null,null,null,null,null,null,null,null,null,null,null,null,null,null,null,"радиоуправляемые игр",null,null,null,null,null,null,null,null,null,null,null,"средства против загара",null,null,null,null,null,null,"сыр сверхтвердый",null,null,null,null,null,null,null,null,null,null,null,null,null,null,null,null,null,null,null,null,null,"товары для консервирования","кувшины, графины",null,null,null,null,null,null,null,null,null,null,null,null,null,null,null,null,null,null,null,null,null,null,null,null,null,null,null,null,null,null,null,null,null,null,null,null,null,null,null,null,null,null,null,null,null,null,null,null,null,null,null,null,null,null,null,null,null,null,"ром",null,null,null,null,null,"тимьян",null,null,null,null,null,null,null,null,null,null,null,null,null,null,null,"",null,null,null,null,null,null,null,null,null,null,null,null,null,null,null,null,null,null,null,null,null,null,null,null,null,null,null,null,null,null,null,null,null,null,null,null,null,null,null,null,null,null,null,null,null,null,null,null,null,null,null,null,null,null,null,null,null,null,null,null,null,null,null,null,null,null,null,null,null,null,null,null,null,null,null,null,null,null,null,null,null,null,null,null,null,null,null,null,null,null,null,null,null,null,null,null,null,null,null,null,null,null,null,null,null,null,null,null,null,null,null,null,"помидоры свежие","экзотика",null,null,null,null,null,null,null,null,null,null,null,null,null,null,null,null,null,null,null,null,null,null,null,null,null,null,null,null,null,null,null,null,null,null,null,null,null,null,null,"прочая",null,"краковская","столичная",null,null,null,null,null,null,null,null,null,null,null,null,null,null,null,null,null,null,null,null,null,null,null,null,null,null,null,null,"смазки",null,null,null,null,null,null,"проигрыватели пластинок винил",null,null,null,null,null,null,null,null,null,null,null,null,"фены",null,null,"ножи электрические","хлебопечи",null,null,null,null,null,null,null,null,null,null,null,null,null,null,null,null,null,null,null,null,null,null,null,null,null,null,null,null,"прочие","лестницы, стремянки",null,"паяльники",null,"фотографии",null,"серванты","полотенца из текстиля"]
["мебель, интерьеры",null,null,null,null,null,null,null,null,null,null,null,null,null,null,null,null,"роботы и трансфорформеры",null,null,null,null,null,null,null,null,null,null,null,null,null,null,null,null,null,null,"сыр твердый",null,null,null,null,null,null,null,null,null,null,null,null,null,null,null,null,null,null,null,null,null,"контейнеры для хранения","наборы чайные",null,null,null,null,null,null,null,null,null,null,null,null,null,null,null,null,null,null,null,null,null,null,null,null,null,null,null,null,null,null,null,null,null,null,null,null,null,null,null,null,null,null,null,null,null,null,null,null,null,null,null,null,null,null,null,null,null,null,"шампанское, вина игристые",null,null,null,null,null,"тмин",null,null,null,null,null,null,null,null,null,null,null,null,null,null,null,"",null,null,null,null,null,null,null,null,null,null,null,null,null,null,null,null,null,null,null,null,null,null,null,null,null,null,null,null,null,null,null,null,null,null,null,null,null,null,null,null,null,null,null,null,null,null,null,null,null,null,null,null,null,null,null,null,null,null,null,null,null,null,null,null,null,null,null,null,null,null,null,null,null,null,null,null,null,null,null,null,null,null,null,null,null,null,null,null,null,null,null,null,null,null,null,null,null,null,null,null,null,null,null,null,null,null,null,null,null,null,null,null,"проростки","яблоки",null,null,null,null,null,null,null,null,null,null,null,null,null,null,null,null,null,null,null,null,null,null,null,null,null,null,null,null,null,null,null,null,null,null,null,null,null,null,null,"русская",null,"краснодарская","суджук",null,null,null,null,null,null,null,null,null,null,null,null,null,null,null,null,null,null,null,null,null,null,null,null,null,null,null,null,"фильтры автомобильные",null,null,null,null,null,null,"прочее оборудование",null,null,null,null,null,null,null,null,null,null,null,null,"щипцы,бегуди электрические",null,null,"прочая техника","яйцеварки",null,null,null,null,null,null,null,null,null,null,null,null,null,null,null,null,null,null,null,null,null,null,null,null,null,null,null,null,"рубанки, напильники","напольное покрытие",null,"перфораторы",null,null,null,"столы обеденные","постельные принадлежности наборы"]
["медиа(книги, диски, пресса и т.д.)",null,null,null,null,null,null,null,null,null,null,null,null,null,null,null,null,"эл. игры и игрушки",null,null,null,null,null,null,null,null,null,null,null,null,null,null,null,null,null,null,"сырный продукт",null,null,null,null,null,null,null,null,null,null,null,null,null,null,null,null,null,null,null,null,null,"наборы для фондю (без блока питания)","стаканы",null,null,null,null,null,null,null,null,null,null,null,null,null,null,null,null,null,null,null,null,null,null,null,null,null,null,null,null,null,null,null,null,null,null,null,null,null,null,null,null,null,null,null,null,null,null,null,null,null,null,null,null,null,null,null,null,null,null,null,null,null,null,null,null,"укроп",null,null,null,null,null,null,null,null,null,null,null,null,null,null,null,"",null,null,null,null,null,null,null,null,null,null,null,null,null,null,null,null,null,null,null,null,null,null,null,null,null,null,null,null,null,null,null,null,null,null,null,null,null,null,null,null,null,null,null,null,null,null,null,null,null,null,null,null,null,null,null,null,null,null,null,null,null,null,null,null,null,null,null,null,null,null,null,null,null,null,null,null,null,null,null,null,null,null,null,null,null,null,null,null,null,null,null,null,null,null,null,null,null,null,null,null,null,null,null,null,null,null,null,null,null,null,null,null,"прочие корнеплоды",null,null,null,null,null,null,null,null,null,null,null,null,null,null,null,null,null,null,null,null,null,null,null,null,null,null,null,null,null,null,null,null,null,null,null,null,null,null,null,null,"столичная",null,"крестьянская",null,null,null,null,null,null,null,null,null,null,null,null,null,null,null,null,null,null,null,null,null,null,null,null,null,null,null,null,null,"шины автомобильные",null,null,null,null,null,null,"радио-приемники",null,null,null,null,null,null,null,null,null,null,null,null,"электрогрелки для обуви",null,null,"соковыжималки электрические",null,null,null,null,null,null,null,null,null,null,null,null,null,null,null,null,null,null,null,null,null,null,null,null,null,null,null,null,null,"стамески, долото","настил, перила",null,"пилы дисковые",null,null,null,"стулья, кресла, табуреты","простыни"]
["молоко и молочные товары",null,null,null,null,null,null,null,null,null,null,null,null,null,null,null,null,null,null,null,null,null,null,null,null,null,null,null,null,null,null,null,null,null,null,null,"сыры прочие",null,null,null,null,null,null,null,null,null,null,null,null,null,null,null,null,null,null,null,null,null,"прочие","тарелки, блюда",null,null,null,null,null,null,null,null,null,null,null,null,null,null,null,null,null,null,null,null,null,null,null,null,null,null,null,null,null,null,null,null,null,null,null,null,null,null,null,null,null,null,null,null,null,null,null,null,null,null,null,null,null,null,null,null,null,null,null,null,null,null,null,null,"фенхель",null,null,null,null,null,null,null,null,null,null,null,null,null,null,null,"",null,null,null,null,null,null,null,null,null,null,null,null,null,null,null,null,null,null,null,null,null,null,null,null,null,null,null,null,null,null,null,null,null,null,null,null,null,null,null,null,null,null,null,null,null,null,null,null,null,null,null,null,null,null,null,null,null,null,null,null,null,null,null,null,null,null,null,null,null,null,null,null,null,null,null,null,null,null,null,null,null,null,null,null,null,null,null,null,null,null,null,null,null,null,null,null,null,null,null,null,null,null,null,null,null,null,null,null,null,null,null,null,"прочие овощи",null,null,null,null,null,null,null,null,null,null,null,null,null,null,null,null,null,null,null,null,null,null,null,null,null,null,null,null,null,null,null,null,null,null,null,null,null,null,null,null,"столовая",null,"одесская",null,null,null,null,null,null,null,null,null,null,null,null,null,null,null,null,null,null,null,null,null,null,null,null,null,null,null,null,null,null,null,null,null,null,null,null,"ресиверы и тюнеры",null,null,null,null,null,null,null,null,null,null,null,null,"эпиляторы",null,null,"устройства для заточки ножей электрические",null,null,null,null,null,null,null,null,null,null,null,null,null,null,null,null,null,null,null,null,null,null,null,null,null,null,null,null,null,"тиски, струбцины","окна",null,"плоскошлифовальная машина",null,null,null,"тумбы","прочие"]
["мясо и мясные продукты",null,null,null,null,null,null,null,null,null,null,null,null,null,null,null,null,null,null,null,null,null,null,null,null,null,null,null,null,null,null,null,null,null,null,null,"творог",null,null,null,null,null,null,null,null,null,null,null,null,null,null,null,null,null,null,null,null,null,null,"подносы и подставки",null,null,null,null,null,null,null,null,null,null,null,null,null,null,null,null,null,null,null,null,null,null,null,null,null,null,null,null,null,null,null,null,null,null,null,null,null,null,null,null,null,null,null,null,null,null,null,null,null,null,null,null,null,null,null,null,null,null,null,null,null,null,null,null,"шафран",null,null,null,null,null,null,null,null,null,null,null,null,null,null,null,"",null,null,null,null,null,null,null,null,null,null,null,null,null,null,null,null,null,null,null,null,null,null,null,null,null,null,null,null,null,null,null,null,null,null,null,null,null,null,null,null,null,null,null,null,null,null,null,null,null,null,null,null,null,null,null,null,null,null,null,null,null,null,null,null,null,null,null,null,null,null,null,null,null,null,null,null,null,null,null,null,null,null,null,null,null,null,null,null,null,null,null,null,null,null,null,null,null,null,null,null,null,null,null,null,null,null,null,null,null,null,null,null,"редис",null,null,null,null,null,null,null,null,null,null,null,null,null,null,null,null,null,null,null,null,null,null,null,null,null,null,null,null,null,null,null,null,null,null,null,null,null,null,null,null,"телячья",null,"пикантная",null,null,null,null,null,null,null,null,null,null,null,null,null,null,null,null,null,null,null,null,null,null,null,null,null,null,null,null,null,null,null,null,null,null,null,null,"усилители и предварительные усилители",null,null,null,null,null,null,null,null,null,null,null,null,null,null,null,"чайники электрические",null,null,null,null,null,null,null,null,null,null,null,null,null,null,null,null,null,null,null,null,null,null,null,null,null,null,null,null,null,"шило, кернеры","оконные части, аксессуары",null,"прочие",null,null,null,"этажерки, стеллажи","сидушка на стул"]
["напитки",null,null,null,null,null,null,null,null,null,null,null,null,null,null,null,null,null,null,null,null,null,null,null,null,null,null,null,null,null,null,null,null,null,null,null,"творожные продукты",null,null,null,null,null,null,null,null,null,null,null,null,null,null,null,null,null,null,null,null,null,null,"хлебницы",null,null,null,null,null,null,null,null,null,null,null,null,null,null,null,null,null,null,null,null,null,null,null,null,null,null,null,null,null,null,null,null,null,null,null,null,null,null,null,null,null,null,null,null,null,null,null,null,null,null,null,null,null,null,null,null,null,null,null,null,null,null,null,null,null,null,null,null,null,null,null,null,null,null,null,null,null,null,null,null,"",null,null,null,null,null,null,null,null,null,null,null,null,null,null,null,null,null,null,null,null,null,null,null,null,null,null,null,null,null,null,null,null,null,null,null,null,null,null,null,null,null,null,null,null,null,null,null,null,null,null,null,null,null,null,null,null,null,null,null,null,null,null,null,null,null,null,null,null,null,null,null,null,null,null,null,null,null,null,null,null,null,null,null,null,null,null,null,null,null,null,null,null,null,null,null,null,null,null,null,null,null,null,null,null,null,null,null,null,null,null,null,null,"редька",null,null,null,null,null,null,null,null,null,null,null,null,null,null,null,null,null,null,null,null,null,null,null,null,null,null,null,null,null,null,null,null,null,null,null,null,null,null,null,null,"чайная",null,"покровская",null,null,null,null,null,null,null,null,null,null,null,null,null,null,null,null,null,null,null,null,null,null,null,null,null,null,null,null,null,null,null,null,null,null,null,null,"устройства дистанционного управления",null,null,null,null,null,null,null,null,null,null,null,null,null,null,null,"штопоры электрические",null,null,null,null,null,null,null,null,null,null,null,null,null,null,null,null,null,null,null,null,null,null,null,null,null,null,null,null,null,"шлифовальные машины","пиломатериалы",null,"сверлильные станки",null,null,null,null,"скатерти, салфетки"]
["обувь",null,null,null,null,null,null,null,null,null,null,null,null,null,null,null,null,null,null,null,null,null,null,null,null,null,null,null,null,null,null,null,null,null,null,null,null,null,null,null,null,null,null,null,null,null,null,null,null,null,null,null,null,null,null,null,null,null,null,"сервизы, наборы столовые",null,null,null,null,null,null,null,null,null,null,null,null,null,null,null,null,null,null,null,null,null,null,null,null,null,null,null,null,null,null,null,null,null,null,null,null,null,null,null,null,null,null,null,null,null,null,null,null,null,null,null,null,null,null,null,null,null,null,null,null,null,null,null,null,null,null,null,null,null,null,null,null,null,null,null,null,null,null,null,null,"",null,null,null,null,null,null,null,null,null,null,null,null,null,null,null,null,null,null,null,null,null,null,null,null,null,null,null,null,null,null,null,null,null,null,null,null,null,null,null,null,null,null,null,null,null,null,null,null,null,null,null,null,null,null,null,null,null,null,null,null,null,null,null,null,null,null,null,null,null,null,null,null,null,null,null,null,null,null,null,null,null,null,null,null,null,null,null,null,null,null,null,null,null,null,null,null,null,null,null,null,null,null,null,null,null,null,null,null,null,null,null,null,"репа",null,null,null,null,null,null,null,null,null,null,null,null,null,null,null,null,null,null,null,null,null,null,null,null,null,null,null,null,null,null,null,null,null,null,null,null,null,null,null,null,null,null,"полтавская",null,null,null,null,null,null,null,null,null,null,null,null,null,null,null,null,null,null,null,null,null,null,null,null,null,null,null,null,null,null,null,null,null,null,null,null,null,null,null,null,null,null,null,null,null,null,null,null,null,null,null,null,null,null,null,null,null,null,null,null,null,null,null,null,null,null,null,null,null,null,null,null,null,null,null,null,null,null,null,null,null,null,null,"покрытия для стен, потолка",null,"токарные станки",null,null,null,null,"тюль"]
["одежда",null,null,null,null,null,null,null,null,null,null,null,null,null,null,null,null,null,null,null,null,null,null,null,null,null,null,null,null,null,null,null,null,null,null,null,null,null,null,null,null,null,null,null,null,null,null,null,null,null,null,null,null,null,null,null,null,null,null,"прочие",null,null,null,null,null,null,null,null,null,null,null,null,null,null,null,null,null,null,null,null,null,null,null,null,null,null,null,null,null,null,null,null,null,null,null,null,null,null,null,null,null,null,null,null,null,null,null,null,null,null,null,null,null,null,null,null,null,null,null,null,null,null,null,null,null,null,null,null,null,null,null,null,null,null,null,null,null,null,null,null,"",null,null,null,null,null,null,null,null,null,null,null,null,null,null,null,null,null,null,null,null,null,null,null,null,null,null,null,null,null,null,null,null,null,null,null,null,null,null,null,null,null,null,null,null,null,null,null,null,null,null,null,null,null,null,null,null,null,null,null,null,null,null,null,null,null,null,null,null,null,null,null,null,null,null,null,null,null,null,null,null,null,null,null,null,null,null,null,null,null,null,null,null,null,null,null,null,null,null,null,null,null,null,null,null,null,null,null,null,null,null,null,null,"свекла",null,null,null,null,null,null,null,null,null,null,null,null,null,null,null,null,null,null,null,null,null,null,null,null,null,null,null,null,null,null,null,null,null,null,null,null,null,null,null,null,null,null,"польская",null,null,null,null,null,null,null,null,null,null,null,null,null,null,null,null,null,null,null,null,null,null,null,null,null,null,null,null,null,null,null,null,null,null,null,null,null,null,null,null,null,null,null,null,null,null,null,null,null,null,null,null,null,null,null,null,null,null,null,null,null,null,null,null,null,null,null,null,null,null,null,null,null,null,null,null,null,null,null,null,null,null,null,"прочие",null,"фены технические"]
["офисная техника и принадлежности",null,null,null,null,null,null,null,null,null,null,null,null,null,null,null,null,null,null,null,null,null,null,null,null,null,null,null,null,null,null,null,null,null,null,null,null,null,null,null,null,null,null,null,null,null,null,null,null,null,null,null,null,null,null,null,null,null,null,null,null,null,null,null,null,null,null,null,null,null,null,null,null,null,null,null,null,null,null,null,null,null,null,null,null,null,null,null,null,null,null,null,null,null,null,null,null,null,null,null,null,null,null,null,null,null,null,null,null,null,null,null,null,null,null,null,null,null,null,null,null,null,null,null,null,null,null,null,null,null,null,null,null,null,null,null,null,null,null,null,null,null,null,null,null,null,null,null,null,null,null,null,null,null,null,null,null,null,null,null,null,null,null,null,null,null,null,null,null,null,null,null,null,null,null,null,null,null,null,null,null,null,null,null,null,null,null,null,null,null,null,null,null,null,null,null,null,null,null,null,null,null,null,null,null,null,null,null,null,null,null,null,null,null,null,null,null,null,null,null,null,null,null,null,null,null,null,null,null,null,null,null,null,null,null,null,null,null,null,null,null,null,null,null,null,null,null,null,null,null,null,null,null,"тыква"]
["приправы и пряности",null,null,null,null,null,null,null,null,null,null,null,null,null,null,null,null,null,null,null,null,null,null,null,null,null,null,null,null,null,null,null,null,null,null,null,null,null,null,null,null,null,null,null,null,null,null,null,null,null,null,null,null,null,null,null,null,null,null,null,null,null,null,null,null,null,null,null,null,null,null,null,null,null,null,null,null,null,null,null,null,null,null,null,null,null,null,null,null,null,null,null,null,null,null,null,null,null,null,null,null,null,null,null,null,null,null,null,null,null,null,null,null,null,null,null,null,null,null,null,null,null,null,null,null,null,null,null,null,null,null,null,null,null,null,null,null,null,null,null,"",null,null,null,null,null,null,null,null,null,null,null,null,null,null,null,null,null,null,null,null,null,null,null,null,null,null,null,null,null,null,null,null,null,null,null,null,null,null,null,null,null,null,null,null,null,null,null,null,null,null,null,null,null,null,null,null,null,null,null,null,null,null,null,null,null,null,null,null,null,null,null,null,null,null,null,null,null,null,null,null,null,null,null,null,null,null,null,null,null,null,null,null,null,null,null,null,null,null,null,null,null,null,null,null,null,null,null,null,null,null,null,null,"цуккини",null,null,null,null,null,null,null,null,null,null,null,null,null,null,null,null,null,null,null,null,null,null,null,null,null,null,null,null,null,null,null,null,null,null,null,null,null,null,null,null,null,null,"прочая",null,null,null,null,null,null,null,null,null,null,null,null,null,null,null,null,null,null,null,null,null,null,null,null,null,null,null,null,null,null,null,null,null,null,null,null,null,null,null,null,null,null,null,null,null,null,null,null,null,null,null,null,null,null,null,null,null,null,null,null,null,null,null,null,null,null,null,null,null,null,null,null,null,null,null,null,null,null,null,null,null,null,null,"стекло",null,"фрезеры"]
["продукты диетические",null,null,null,null,null,null,null,null,null,null,null,null,null,null,null,null,null,null,null,null,null,null,null,null,null,null,null,null,null,null,null,null,null,null,null,null,null,null,null,null,null,null,null,null,null,null,null,null,null,null,null,null,null,null,null,null,null,null,null,null,null,null,null,null,null,null,null,null,null,null,null,null,null,null,null,null,null,null,null,null,null,null,null,null,null,null,null,null,null,null,null,null,null,null,null,null,null,null,null,null,null,null,null,null,null,null,null,null,null,null,null,null,null,null,null,null,null,null,null,null,null,null,null,null,null,null,null,null,null,null,null,null,null,null,null,null,null,null,null,"",null,null,null,null,null,null,null,null,null,null,null,null,null,null,null,null,null,null,null,null,null,null,null,null,null,null,null,null,null,null,null,null,null,null,null,null,null,null,null,null,null,null,null,null,null,null,null,null,null,null,null,null,null,null,null,null,null,null,null,null,null,null,null,null,null,null,null,null,null,null,null,null,null,null,null,null,null,null,null,null,null,null,null,null,null,null,null,null,null,null,null,null,null,null,null,null,null,null,null,null,null,null,null,null,null,null,null,null,null,null,null,null,"чеснок",null,null,null,null,null,null,null,null,null,null,null,null,null,null,null,null,null,null,null,null,null,null,null,null,null,null,null,null,null,null,null,null,null,null,null,null,null,null,null,null,null,null,"русская",null,null,null,null,null,null,null,null,null,null,null,null,null,null,null,null,null,null,null,null,null,null,null,null,null,null,null,null,null,null,null,null,null,null,null,null,null,null,null,null,null,null,null,null,null,null,null,null,null,null,null,null,null,null,null,null,null,null,null,null,null,null,null,null,null,null,null,null,null,null,null,null,null,null,null,null,null,null,null,null,null,null,null,"строительные наборы",null,"шуруповерты"]
["продукция для животных",null,null,null,null,null,null,null,null,null,null,null,null,null,null,null,null,null,null,null,null,null,null,null,null,null,null,null,null,null,null,null,null,null,null,null,null,null,null,null,null,null,null,null,null,null,null,null,null,null,null,null,null,null,null,null,null,null,null,null,null,null,null,null,null,null,null,null,null,null,null,null,null,null,null,null,null,null,null,null,null,null,null,null,null,null,null,null,null,null,null,null,null,null,null,null,null,null,null,null,null,null,null,null,null,null,null,null,null,null,null,null,null,null,null,null,null,null,null,null,null,null,null,null,null,null,null,null,null,null,null,null,null,null,null,null,null,null,null,null,"",null,null,null,null,null,null,null,null,null,null,null,null,null,null,null,null,null,null,null,null,null,null,null,null,null,null,null,null,null,null,null,null,null,null,null,null,null,null,null,null,null,null,null,null,null,null,null,null,null,null,null,null,null,null,null,null,null,null,null,null,null,null,null,null,null,null,null,null,null,null,null,null,null,null,null,null,null,null,null,null,null,null,null,null,null,null,null,null,null,null,null,null,null,null,null,null,null,null,null,null,null,null,null,null,null,null,null,null,null,null,null,null,null,null,null,null,null,null,null,null,null,null,null,null,null,null,null,null,null,null,null,null,null,null,null,null,null,null,null,null,null,null,null,null,null,null,null,null,null,null,null,null,null,null,null,"свиная"]
["прочее",null,null,null,null,null,null,null,null,null,null,null,null,null,null,null,null,null,null,null,null,null,null,null,null,null,null,null,null,null,null,null,null,null,null,null,null,null,null,null,null,null,null,null,null,null,null,null,null,null,null,null,null,null,null,null,null,null,null,null,null,null,null,null,null,null,null,null,null,null,null,null,null,null,null,null,null,null,null,null,null,null,null,null,null,null,null,null,null,null,null,null,null,null,null,null,null,null,null,null,null,null,null,null,null,null,null,null,null,null,null,null,null,null,null,null,null,null,null,null,null,null,null,null,null,null,null,null,null,null,null,null,null,null,null,null,null,null,null,null,"",null,null,null,null,null,null,null,null,null,null,null,null,null,null,null,null,null,null,null,null,null,null,null,null,null,null,null,null,null,null,null,null,null,null,null,null,null,null,null,null,null,null,null,null,null,null,null,null,null,null,null,null,null,null,null,null,null,null,null,null,null,null,null,null,null,null,null,null,null,null,null,null,null,null,null,null,null,null,null,null,null,null,null,null,null,null,null,null,null,null,null,null,null,null,null,null,null,null,null,null,null,null,null,null,null,null,null,null,null,null,null,null,null,null,null,null,null,null,null,null,null,null,null,null,null,null,null,null,null,null,null,null,null,null,null,null,null,null,null,null,null,null,null,null,null,null,null,null,null,null,null,null,null,null,null,"сервелат"]
["рыба и рыбные товары",null,null,null,null,null,null,null,null,null,null,null,null,null,null,null,null,null,null,null,null,null,null,null,null,null,null,null,null,null,null,null,null,null,null,null,null,null,null,null,null,null,null,null,null,null,null,null,null,null,null,null,null,null,null,null,null,null,null,null,null,null,null,null,null,null,null,null,null,null,null,null,null,null,null,null,null,null,null,null,null,null,null,null,null,null,null,null,null,null,null,null,null,null,null,null,null,null,null,null,null,null,null,null,null,null,null,null,null,null,null,null,null,null,null,null,null,null,null,null,null,null,null,null,null,null,null,null,null,null,null,null,null,null,null,null,null,null,null,null,"",null,null,null,null,null,null,null,null,null,null,null,null,null,null,null,null,null,null,null,null,null,null,null,null,null,null,null,null,null,null,null,null,null,null,null,null,null,null,null,null,null,null,null,null,null,null,null,null,null,null,null,null,null,null,null,null,null,null,null,null,null,null,null,null,null,null,null,null,null,null,null,null,null,null,null,null,null,null,null,null,null,null,null,null,null,null,null,null,null,null,null,null,null,null,null,null,null,null,null,null,null,null,null,null,null,null,null,null,null,null,null,null,null,null,null,null,null,null,null,null,null,null,null,null,null,null,null,null,null,null,null,null,null,null,null,null,null,null,null,null,null,null,null,null,null,null,null,null,null,null,null,null,null,null,null,"столичная"]
["сад и огород",null,null,null,null,null,null,null,null,null,null,null,null,null,null,null,null,null,null,null,null,null,null,null,null,null,null,null,null,null,null,null,null,null,null,null,null,null,null,null,null,null,null,null,null,null,null,null,null,null,null,null,null,null,null,null,null,null,null,null,null,null,null,null,null,null,null,null,null,null,null,null,null,null,null,null,null,null,null,null,null,null,null,null,null,null,null,null,null,null,null,null,null,null,null,null,null,null,null,null,null,null,null,null,null,null,null,null,null,null,null,null,null,null,null,null,null,null,null,null,null,null,null,null,null,null,null,null,null,null,null,null,null,null,null,null,null,null,null,null,"",null,null,null,null,null,null,null,null,null,null,null,null,null,null,null,null,null,null,null,null,null,null,null,null,null,null,null,null,null,null,null,null,null,null,null,null,null,null,null,null,null,null,null,null,null,null,null,null,null,null,null,null,null,null,null,null,null,null,null,null,null,null,null,null,null,null,null,null,null,null,null,null,null,null,null,null,null,null,null,null,null,null,null,null,null,null,null,null,null,null,null,null,null,null,null,null,null,null,null,null,null,null,null,null,null,null,null,null,null,null,null,null,null,null,null,null,null,null,null,null,null,null,null,null,null,null,null,null,null,null,null,null,null,null,null,null,null,null,null,null,null,null,null,null,null,null,null,null,null,null,null,null,null,null,null,"талинская"]
["сделай сам",null,null,null,null,null,null,null,null,null,null,null,null,null,null,null,null,null,null,null,null,null,null,null,null,null,null,null,null,null,null,null,null,null,null,null,null,null,null,null,null,null,null,null,null,null,null,null,null,null,null,null,null,null,null,null,null,null,null,null,null,null,null,null,null,null,null,null,null,null,null,null,null,null,null,null,null,null,null,null,null,null,null,null,null,null,null,null,null,null,null,null,null,null,null,null,null,null,null,null,null,null,null,null,null,null,null,null,null,null,null,null,null,null,null,null,null,null,null,null,null,null,null,null,null,null,null,null,null,null,null,null,null,null,null,null,null,null,null,null,"",null,null,null,null,null,null,null,null,null,null,null,null,null,null,null,null,null,null,null,null,null,null,null,null,null,null,null,null,null,null,null,null,null,null,null,null,null,null,null,null,null,null,null,null,null,null,null,null,null,null,null,null,null,null,null,null,null,null,null,null,null,null,null,null,null,null,null,null,null,null,null,null,null,null,null,null,null,null,null,null,null,null,null,null,null,null,null,null,null,null,null,null,null,null,null,null,null,null,null,null,null,null,null,null,null,null,null,null,null,null,null,null,null,null,null,null,null,null,null,null,null,null,null,null,null,null,null,null,null,null,null,null,null,null,null,null,null,null,null,null,null,null,null,null,null,null,null,null,null,null,null,null,null,null,null,"украинская"]
["спорт",null,null,null,null,null,null,null,null,null,null,null,null,null,null,null,null,null,null,null,null,null,null,null,null,null,null,null,null,null,null,null,null,null,null,null,null,null,null,null,null,null,null,null,null,null,null,null,null,null,null,null,null,null,null,null,null,null,null,null,null,null,null,null,null,null,null,null,null,null,null,null,null,null,null,null,null,null,null,null,null,null,null,null,null,null,null,null,null,null,null,null,null,null,null,null,null,null,null,null,null,null,null,null,null,null,null,null,null,null,null,null,null,null,null,null,null,null,null,null,null,null,null,null,null,null,null,null,null,null,null,null,null,null,null,null,null,null,null,null,"",null,null,null,null,null,null,null,null,null,null,null,null,null,null,null,null,null,null,null,null,null,null,null,null,null,null,null,null,null,null,null,null,null,null,null,null,null,null,null,null,null,null,null,null,null,null,null,null,null,null,null,null,null,null,null,null,null,null,null,null,null,null,null,null,null,null,null,null,null,null,null,null,null,null,null,null,null,null,null,null,null,null,null,null,null,null,null,null,null,null,null,null,null,null,null,null,null,null,null,null,null,null,null,null,null,null,null,null,null,null,null,null,null,null,null,null,null,null,null,null,null,null,null,null,null,null,null,null,null,null,null,null,null,null,null,null,null,null,null,null,null,null,null,null,null,null,null,null,null,null,null,null,null,null,null,"уральская"]
["средства коммуникации"]
["табачные изделия и аксессуары",null,null,null,null,null,null,null,null,null,null,null,null,null,null,null,null,null,null,null,null,null,null,null,null,null,null,null,null,null,null,null,null,null,null,null,null,null,null,null,null,null,null,null,null,null,null,null,null,null,null,null,null,null,null,null,null,null,null,null,null,null,null,null,null,null,null,null,null,null,null,null,null,null,null,null,null,null,null,null,null,null,null,null,null,null,null,null,null,null,null,null,null,null,null,null,null,null,null,null,null,null,null,null,null,null,null,null,null,null,null,null,null,null,null,null,null,null,null,null,null,null,null,null,null,null,null,null,null,null,null,null,null,null,null,null,null,null,null,null,""]
["товары для дома, хозтовары",null,null,null,null,null,null,null,null,null,null,null,null,null,null,null,null,null,null,null,null,null,null,null,null,null,null,null,null,null,null,null,null,null,null,null,null,null,null,null,null,null,null,null,null,null,null,null,null,null,null,null,null,null,null,null,null,null,null,null,null,null,null,null,null,null,null,null,null,null,null,null,null,null,null,null,null,null,null,null,null,null,null,null,null,null,null,null,null,null,null,null,null,null,null,null,null,null,null,null,null,null,null,null,null,null,null,null,null,null,null,null,null,null,null,null,null,null,null,null,null,null,null,null,null,null,null,null,null,null,null,null,null,null,null,null,null,null,null,null,""]
["товары для отдыха"]
["товары для праздника"]
["товары для ремонта"]
["фрукты, овощи, орехи",null,null,null,null,null,null,null,null,null,null,null,null,null,null,null,null,null,null,null,null,null,null,null,null,null,null,null,null,null,null,null,null,null,null,null,null,null,null,null,null,null,null,null,null,null,null,null,null,null,null,null,null,null,null,null,null,null,null,null,null,null,null,null,null,null,null,null,null,null,null,null,null,null,null,null,null,null,null,null,null,null,null,null,null,null,null,null,null,null,null,null,null,null,null,null,null,null,null,null,null,null,null,null,null,null,null,null,null,null,null,null,null,null,null,null,null,null,null,null,null,null,null,null,null,null,null,null,null,null,null,null,null,null,null,null,null,null,null,null,""]
["хлеб и хлебобулочные изделия",null,null,null,null,null,null,null,null,null,null,null,null,null,null,null,null,null,null,null,null,null,null,null,null,null,null,null,null,null,null,null,null,null,null,null,null,null,null,null,null,null,null,null,null,null,null,null,null,null,null,null,null,null,null,null,null,null,null,null,null,null,null,null,null,null,null,null,null,null,null,null,null,null,null,null,null,null,null,null,null,null,null,null,null,null,null,null,null,null,null,null,null,null,null,null,null,null,null,null,null,null,null,null,null,null,null,null,null,null,null,null,null,null,null,null,null,null,null,null,null,null,null,null,null,null,null,null,null,null,null,null,null,null,null,null,null,null,null,null,""]
["чай",null,null,null,null,null,null,null,null,null,null,null,null,null,null,null,null,null,null,null,null,null,null,null,null,null,null,null,null,null,null,null,null,null,null,null,null,null,null,null,null,null,null,null,null,null,null,null,null,null,null,null,null,null,null,null,null,null,null,null,null,null,null,null,null,null,null,null,null,null,null,null,null,null,null,null,null,null,null,null,null,null,null,null,null,null,null,null,null,null,null,null,null,null,null,null,null,null,null,null,null,null,null,null,null,null,null,null,null,null,null,null,null,null,null,null,null,null,null,null,null,null,null,null,null,null,null,null,null,null,null,null,null,null,null,null,null,null,null,null,""]

{"sheet":"Алгоритм проверки","index":5,"n_rows":38,"n_cols":4,"rows_kept":38,"cut":false,"hidden":false,"merged":[[2,2,2,3],[29,2,29,3]]}
["Обязательные столбцы для заполнения",null,"Правило","Сообщение"]
["d - Наименование товара"]
["g - Ед.Измерения",null,"Проверка ВГХ действует, если X - GTIN заполнен"]
["h - Вес нетто",null,"Если h > z","Вес нетто => веса брутто; "]
["z - вес брутто штуки",null,"Если g не равно \"КГ\" или g не равно \"ШТ\" ","Единица измерения не равна КГ или ШТ"]
["aa - высота штуки",null,"Если y - пустое значение ","Штрихкод штуки (столбец y) не заполнен"]
["ab - ширина штуки",null,"Если bb не равно 0.8 и bi не равно 0.8","Ширина слоя и паллеты не 0.8"]
["ac - глубина штуки",null,"Если bc не равно 1.2 и bj не равно 1.2 ","Глубина слоя и паллеты не 1.2;"]
["ae - тип упаковки штуки",null,"Если bh > 1.8","Высота паллеты больше, чем 1.8 метра"]
["af - материал упаковки штуки",null,"Если bh <  ba","Высота паллеты меньше,чем высота слоя"]
["aq - вес брутто короба",null,"Если ba * 1000 <  as","Высота слоя меньше,чем высота короба"]
["ar - квант короба",null,"Если as <= aa","Высота короба меньше,чем высота штуки"]
["as - высота короба",null,"Если результат деления bf / az не целое число","Неверная кратность паллета/слоя"]
["at - ширина короба",null,"Если результат деления az / ar не целое число","Неверная кратность слоя/короб"]
["au - глубина короба",null,"Если ( z * ar ) > aq","Вес короба меньше,чем суммарный вес штук"]
["aw - тип упаковки короба",null,"Если (az / ar) * aq > ay","Вес слоя меньше,чем суммарный вес коробов"]
["ax - материал упаковки короба",null,"Если (bf / az) * ay >  be","Вес паллеты меньше,чем суммарный вес слоев"]
["ay - вес брутто слоя",null,"Если (z * 1000000 / (ac * aa * ab) < 0.01) или (z * 1000000 / (ac * aa * ab) > 1.5","Плотность штуки не в диапазоне 0,1 до 1,5 дм/кг3"]
["az - квант слоя",null,"Если (aq * 1000000 / (au * as * at) < 0.01 или (aq * 1000000 / (au* as * at) > 1.5) ","Плотность короба не в диапазоне 0,1 до 1,5 дм/кг3"]
["ba - высота слоя",null,"Если (ay / (bc * ba * bb * 1000) < 0.01) или (ay  / (bc * ba * bb) * 1000) > 1.5) ","Плотность слоя не в диапазоне 0,1 до 1,5 дм/кг3"]
["bb - ширина слоя",null,"Если ( be / ( bj * bh * bi * 1000 ) < 0.01) или (be  / (bj * bh * bi * 1000) > 1.5) ","Плотность паллеты не в диапазоне 0,1 до 1,5 дм/кг3"]
["bc - глубина слоя",null,"Если ar не целое число","Нецелый квант короба"]
["be - вес брутто паллеты",null,"Если az не целое число","Нецелый квант слоя"]
["bf - квант паллеты ",null,"Если bf не целое число","Нецелый квант паллеты"]
["bh - высота паллеты",null,"Если f - не с заглавной","Название online должно быть с большой буквы"]
["bi - ширина паллеты",null,"Если f - не содержит вес","Название online не содержит информацию о весе"]
["bj - глубина паллеты",null,"Если f - не содержит Бренд","Название online не содержит Бренд"]
["bk - производитель товара",null,"Если y  = ap","Штрих код короба не должен быть равен штрих коду штуки"]
["bo - страна изготовитель"]
["bp - НДС",null,"Проверки корректности данных"]
["bq - срок годности",null,"bp не равен 0 или bp не равен 10 или bp не равен 18 ","Код НДС не равняется 0,10 или 18"]
["bx- Детское питание",null,"Если cg начинается не на \"7\" и количество знаков cc не равно 10 ","Неверный код поставщика"]
["by - Ценовой сегмент",null,"Если y - пустое значение ","Штрихкод штуки (столбец y) не заполнен"]
["bz - Группа товара",null,"Страна bo не из \"Справочники\" - страны","Страна заполнена не из справочника"]
["ce - номер вендора в SAP ",null,"Тип упаковки штуки ae не из \"Справочники\" - упаковка","Неверно указан тип упаковки штуки"]
["cg - код поставщика ",null,"Тип материала шутки af не из  \"Справочники\" - материалы","Неверно указан тип материала штуки"]
[null,null,"Тип упаковки короба aw не из \"Справочники\" - упаковка","Неверно указан тип упаковки короба"]
[null,null,"Тип материала короба ax не из  \"Справочники\" - материалы","Неверно указан тип материала короба"]

{"sheet":"Лист1","index":6,"n_rows":0,"n_cols":0,"rows_kept":0,"cut":false,"hidden":true,"merged":[]}

{"sheet":"Лист2","index":7,"n_rows":0,"n_cols":0,"rows_kept":0,"cut":false,"hidden":true,"merged":[]}

{"sheet":"Лист3","index":8,"n_rows":0,"n_cols":0,"rows_kept":0,"cut":false,"hidden":false,"merged":[]}